Workbook

Sheet Låneberegner
B1: Enkel låneberegner
B2: Angiv værdier
B3: Lånebeløb | E3: kr. 5,000.00
B4: Årlig rentesats | E4: 5.50%
B5: Lånets løbetid i antal år | E5: 5
B6: Lånets startdato | E6: =TODAY() -> 2020-04-13
B8: Månedlig afbetaling | E8: =IFERROR(IF(Værdier_Angivet,Månedlig_Betaling,""), "") -> kr. 95.51
B9: Antal afbetalinger | E9: =IFERROR(IF(Værdier_Angivet,Lån_År*12,""), "") -> 60
B10: Renter i alt | E10: =IFERROR(IF(Værdier_Angivet,Omkostning_Ialt-Lån_Beløb,""), "") -> kr. 730.35
B11: Låneomkostninger i alt | E11: =IFERROR(IF(Værdier_Angivet,Månedlig_Betaling*Antal_Betalinger,""), "") -> kr. 5,730.35
B12: Nr. | C12: Betaling Dato | D12: Start- saldo | E12: Betaling | F12: Hovedstol | G12: Renter | H12: Slut- saldo
B13: =IFERROR(IF(Lån_Ikke_Betalt*Værdier_Angivet,Betaling_Nummer,""), "") -> 1 | C13: =IFERROR(IF(Lån_Ikke_Betalt*Værdier_Angivet,Betalingsdato,""), "") -> 2020-05-13 | D13: =IFERROR(IF(Lån_Ikke_Betalt*Værdier_Angivet,Startsaldo,""), "") -> kr. 5,000.00 | E13: =IFERROR(IF(Lån_Ikke_Betalt*Værdier_Angivet,Månedlig_Betaling,""), "") -> kr. 95.51 | F13: =IFERROR(IF(Lån_Ikke_Betalt*Værdier_Angivet,Hovedstol,""), "") -> kr. 72.59 | G13: =IFERROR(IF(Lån_Ikke_Betalt*Værdier_Angivet,Renter,""), "") -> kr. 22.92 | H13: =IFERROR(IF(Lån_Ikke_Betalt*Værdier_Angivet,Slut_saldo,""), "") -> kr. 4,927.41
B14: =IFERROR(IF(Lån_Ikke_Betalt*Værdier_Angivet,Betaling_Nummer,""), "") -> 2 | C14: =IFERROR(IF(Lån_Ikke_Betalt*Værdier_Angivet,Betalingsdato,""), "") -> 2020-06-13 | D14: =IFERROR(IF(Lån_Ikke_Betalt*Værdier_Angivet,Startsaldo,""), "") -> kr. 4,927.41 | E14: =IFERROR(IF(Lån_Ikke_Betalt*Værdier_Angivet,Månedlig_Betaling,""), "") -> kr. 95.51 | F14: =IFERROR(IF(Lån_Ikke_Betalt*Værdier_Angivet,Hovedstol,""), "") -> kr. 72.92 | G14: =IFERROR(IF(Lån_Ikke_Betalt*Værdier_Angivet,Renter,""), "") -> kr. 22.58 | H14: =IFERROR(IF(Lån_Ikke_Betalt*Værdier_Angivet,Slut_saldo,""), "") -> kr. 4,854.49
B15: =IFERROR(IF(Lån_Ikke_Betalt*Værdier_Angivet,Betaling_Nummer,""), "") -> 3 | C15: =IFERROR(IF(Lån_Ikke_Betalt*Værdier_Angivet,Betalingsdato,""), "") -> 2020-07-13 | D15: =IFERROR(IF(Lån_Ikke_Betalt*Værdier_Angivet,Startsaldo,""), "") -> kr. 4,854.49 | E15: =IFERROR(IF(Lån_Ikke_Betalt*Værdier_Angivet,Månedlig_Betaling,""), "") -> kr. 95.51 | F15: =IFERROR(IF(Lån_Ikke_Betalt*Værdier_Angivet,Hovedstol,""), "") -> kr. 73.26 | G15: =IFERROR(IF(Lån_Ikke_Betalt*Værdier_Angivet,Renter,""), "") -> kr. 22.25 | H15: =IFERROR(IF(Lån_Ikke_Betalt*Værdier_Angivet,Slut_saldo,""), "") -> kr. 4,781.23
B16: =IFERROR(IF(Lån_Ikke_Betalt*Værdier_Angivet,Betaling_Nummer,""), "") -> 4 | C16: =IFERROR(IF(Lån_Ikke_Betalt*Værdier_Angivet,Betalingsdato,""), "") -> 2020-08-13 | D16: =IFERROR(IF(Lån_Ikke_Betalt*Værdier_Angivet,Startsaldo,""), "") -> kr. 4,781.23 | E16: =IFERROR(IF(Lån_Ikke_Betalt*Værdier_Angivet,Månedlig_Betaling,""), "") -> kr. 95.51 | F16: =IFERROR(IF(Lån_Ikke_Betalt*Værdier_Angivet,Hovedstol,""), "") -> kr. 73.59 | G16: =IFERROR(IF(Lån_Ikke_Betalt*Værdier_Angivet,Renter,""), "") -> kr. 21.91 | H16: =IFERROR(IF(Lån_Ikke_Betalt*Værdier_Angivet,Slut_saldo,""), "") -> kr. 4,707.64
B17: =IFERROR(IF(Lån_Ikke_Betalt*Værdier_Angivet,Betaling_Nummer,""), "") -> 5 | C17: =IFERROR(IF(Lån_Ikke_Betalt*Værdier_Angivet,Betalingsdato,""), "") -> 2020-09-13 | D17: =IFERROR(IF(Lån_Ikke_Betalt*Værdier_Angivet,Startsaldo,""), "") -> kr. 4,707.64 | E17: =IFERROR(IF(Lån_Ikke_Betalt*Værdier_Angivet,Månedlig_Betaling,""), "") -> kr. 95.51 | F17: =IFERROR(IF(Lån_Ikke_Betalt*Værdier_Angivet,Hovedstol,""), "") -> kr. 73.93 | G17: =IFERROR(IF(Lån_Ikke_Betalt*Værdier_Angivet,Renter,""), "") -> kr. 21.58 | H17: =IFERROR(IF(Lån_Ikke_Betalt*Værdier_Angivet,Slut_saldo,""), "") -> kr. 4,633.71
B18: =IFERROR(IF(Lån_Ikke_Betalt*Værdier_Angivet,Betaling_Nummer,""), "") -> 6 | C18: =IFERROR(IF(Lån_Ikke_Betalt*Værdier_Angivet,Betalingsdato,""), "") -> 2020-10-13 | D18: =IFERROR(IF(Lån_Ikke_Betalt*Værdier_Angivet,Startsaldo,""), "") -> kr. 4,633.71 | E18: =IFERROR(IF(Lån_Ikke_Betalt*Værdier_Angivet,Månedlig_Betaling,""), "") -> kr. 95.51 | F18: =IFERROR(IF(Lån_Ikke_Betalt*Værdier_Angivet,Hovedstol,""), "") -> kr. 74.27 | G18: =IFERROR(IF(Lån_Ikke_Betalt*Værdier_Angivet,Renter,""), "") -> kr. 21.24 | H18: =IFERROR(IF(Lån_Ikke_Betalt*Værdier_Angivet,Slut_saldo,""), "") -> kr. 4,559.44
B19: =IFERROR(IF(Lån_Ikke_Betalt*Værdier_Angivet,Betaling_Nummer,""), "") -> 7 | C19: =IFERROR(IF(Lån_Ikke_Betalt*Værdier_Angivet,Betalingsdato,""), "") -> 2020-11-13 | D19: =IFERROR(IF(Lån_Ikke_Betalt*Værdier_Angivet,Startsaldo,""), "") -> kr. 4,559.44 | E19: =IFERROR(IF(Lån_Ikke_Betalt*Værdier_Angivet,Månedlig_Betaling,""), "") -> kr. 95.51 | F19: =IFERROR(IF(Lån_Ikke_Betalt*Værdier_Angivet,Hovedstol,""), "") -> kr. 74.61 | G19: =IFERROR(IF(Lån_Ikke_Betalt*Værdier_Angivet,Renter,""), "") -> kr. 20.90 | H19: =IFERROR(IF(Lån_Ikke_Betalt*Værdier_Angivet,Slut_saldo,""), "") -> kr. 4,484.84
B20: =IFERROR(IF(Lån_Ikke_Betalt*Værdier_Angivet,Betaling_Nummer,""), "") -> 8 | C20: =IFERROR(IF(Lån_Ikke_Betalt*Værdier_Angivet,Betalingsdato,""), "") -> 2020-12-13 | D20: =IFERROR(IF(Lån_Ikke_Betalt*Værdier_Angivet,Startsaldo,""), "") -> kr. 4,484.84 | E20: =IFERROR(IF(Lån_Ikke_Betalt*Værdier_Angivet,Månedlig_Betaling,""), "") -> kr. 95.51 | F20: =IFERROR(IF(Lån_Ikke_Betalt*Værdier_Angivet,Hovedstol,""), "") -> kr. 74.95 | G20: =IFERROR(IF(Lån_Ikke_Betalt*Værdier_Angivet,Renter,""), "") -> kr. 20.56 | H20: =IFERROR(IF(Lån_Ikke_Betalt*Værdier_Angivet,Slut_saldo,""), "") -> kr. 4,409.89
B21: =IFERROR(IF(Lån_Ikke_Betalt*Værdier_Angivet,Betaling_Nummer,""), "") -> 9 | C21: =IFERROR(IF(Lån_Ikke_Betalt*Værdier_Angivet,Betalingsdato,""), "") -> 2021-01-13 | D21: =IFERROR(IF(Lån_Ikke_Betalt*Værdier_Angivet,Startsaldo,""), "") -> kr. 4,409.89 | E21: =IFERROR(IF(Lån_Ikke_Betalt*Værdier_Angivet,Månedlig_Betaling,""), "") -> kr. 95.51 | F21: =IFERROR(IF(Lån_Ikke_Betalt*Værdier_Angivet,Hovedstol,""), "") -> kr. 75.29 | G21: =IFERROR(IF(Lån_Ikke_Betalt*Værdier_Angivet,Renter,""), "") -> kr. 20.21 | H21: =IFERROR(IF(Lån_Ikke_Betalt*Værdier_Angivet,Slut_saldo,""), "") -> kr. 4,334.59
B22: =IFERROR(IF(Lån_Ikke_Betalt*Værdier_Angivet,Betaling_Nummer,""), "") -> 10 | C22: =IFERROR(IF(Lån_Ikke_Betalt*Værdier_Angivet,Betalingsdato,""), "") -> 2021-02-13 | D22: =IFERROR(IF(Lån_Ikke_Betalt*Værdier_Angivet,Startsaldo,""), "") -> kr. 4,334.59 | E22: =IFERROR(IF(Lån_Ikke_Betalt*Værdier_Angivet,Månedlig_Betaling,""), "") -> kr. 95.51 | F22: =IFERROR(IF(Lån_Ikke_Betalt*Værdier_Angivet,Hovedstol,""), "") -> kr. 75.64 | G22: =IFERROR(IF(Lån_Ikke_Betalt*Værdier_Angivet,Renter,""), "") -> kr. 19.87 | H22: =IFERROR(IF(Lån_Ikke_Betalt*Værdier_Angivet,Slut_saldo,""), "") -> kr. 4,258.95
B23: =IFERROR(IF(Lån_Ikke_Betalt*Værdier_Angivet,Betaling_Nummer,""), "") -> 11 | C23: =IFERROR(IF(Lån_Ikke_Betalt*Værdier_Angivet,Betalingsdato,""), "") -> 2021-03-13 | D23: =IFERROR(IF(Lån_Ikke_Betalt*Værdier_Angivet,Startsaldo,""), "") -> kr. 4,258.95 | E23: =IFERROR(IF(Lån_Ikke_Betalt*Værdier_Angivet,Månedlig_Betaling,""), "") -> kr. 95.51 | F23: =IFERROR(IF(Lån_Ikke_Betalt*Værdier_Angivet,Hovedstol,""), "") -> kr. 75.99 | G23: =IFERROR(IF(Lån_Ikke_Betalt*Værdier_Angivet,Renter,""), "") -> kr. 19.52 | H23: =IFERROR(IF(Lån_Ikke_Betalt*Værdier_Angivet,Slut_saldo,""), "") -> kr. 4,182.97
B24: =IFERROR(IF(Lån_Ikke_Betalt*Værdier_Angivet,Betaling_Nummer,""), "") -> 12 | C24: =IFERROR(IF(Lån_Ikke_Betalt*Værdier_Angivet,Betalingsdato,""), "") -> 2021-04-13 | D24: =IFERROR(IF(Lån_Ikke_Betalt*Værdier_Angivet,Startsaldo,""), "") -> kr. 4,182.97 | E24: =IFERROR(IF(Lån_Ikke_Betalt*Værdier_Angivet,Månedlig_Betaling,""), "") -> kr. 95.51 | F24: =IFERROR(IF(Lån_Ikke_Betalt*Værdier_Angivet,Hovedstol,""), "") -> kr. 76.33 | G24: =IFERROR(IF(Lån_Ikke_Betalt*Værdier_Angivet,Renter,""), "") -> kr. 19.17 | H24: =IFERROR(IF(Lån_Ikke_Betalt*Værdier_Angivet,Slut_saldo,""), "") -> kr. 4,106.63
B25: =IFERROR(IF(Lån_Ikke_Betalt*Værdier_Angivet,Betaling_Nummer,""), "") -> 13 | C25: =IFERROR(IF(Lån_Ikke_Betalt*Værdier_Angivet,Betalingsdato,""), "") -> 2021-05-13 | D25: =IFERROR(IF(Lån_Ikke_Betalt*Værdier_Angivet,Startsaldo,""), "") -> kr. 4,106.63 | E25: =IFERROR(IF(Lån_Ikke_Betalt*Værdier_Angivet,Månedlig_Betaling,""), "") -> kr. 95.51 | F25: =IFERROR(IF(Lån_Ikke_Betalt*Værdier_Angivet,Hovedstol,""), "") -> kr. 76.68 | G25: =IFERROR(IF(Lån_Ikke_Betalt*Værdier_Angivet,Renter,""), "") -> kr. 18.82 | H25: =IFERROR(IF(Lån_Ikke_Betalt*Værdier_Angivet,Slut_saldo,""), "") -> kr. 4,029.95
B26: =IFERROR(IF(Lån_Ikke_Betalt*Værdier_Angivet,Betaling_Nummer,""), "") -> 14 | C26: =IFERROR(IF(Lån_Ikke_Betalt*Værdier_Angivet,Betalingsdato,""), "") -> 2021-06-13 | D26: =IFERROR(IF(Lån_Ikke_Betalt*Værdier_Angivet,Startsaldo,""), "") -> kr. 4,029.95 | E26: =IFERROR(IF(Lån_Ikke_Betalt*Værdier_Angivet,Månedlig_Betaling,""), "") -> kr. 95.51 | F26: =IFERROR(IF(Lån_Ikke_Betalt*Værdier_Angivet,Hovedstol,""), "") -> kr. 77.04 | G26: =IFERROR(IF(Lån_Ikke_Betalt*Værdier_Angivet,Renter,""), "") -> kr. 18.47 | H26: =IFERROR(IF(Lån_Ikke_Betalt*Værdier_Angivet,Slut_saldo,""), "") -> kr. 3,952.91
B27: =IFERROR(IF(Lån_Ikke_Betalt*Værdier_Angivet,Betaling_Nummer,""), "") -> 15 | C27: =IFERROR(IF(Lån_Ikke_Betalt*Værdier_Angivet,Betalingsdato,""), "") -> 2021-07-13 | D27: =IFERROR(IF(Lån_Ikke_Betalt*Værdier_Angivet,Startsaldo,""), "") -> kr. 3,952.91 | E27: =IFERROR(IF(Lån_Ikke_Betalt*Værdier_Angivet,Månedlig_Betaling,""), "") -> kr. 95.51 | F27: =IFERROR(IF(Lån_Ikke_Betalt*Værdier_Angivet,Hovedstol,""), "") -> kr. 77.39 | G27: =IFERROR(IF(Lån_Ikke_Betalt*Værdier_Angivet,Renter,""), "") -> kr. 18.12 | H27: =IFERROR(IF(Lån_Ikke_Betalt*Værdier_Angivet,Slut_saldo,""), "") -> kr. 3,875.53
B28: =IFERROR(IF(Lån_Ikke_Betalt*Værdier_Angivet,Betaling_Nummer,""), "") -> 16 | C28: =IFERROR(IF(Lån_Ikke_Betalt*Værdier_Angivet,Betalingsdato,""), "") -> 2021-08-13 | D28: =IFERROR(IF(Lån_Ikke_Betalt*Værdier_Angivet,Startsaldo,""), "") -> kr. 3,875.53 | E28: =IFERROR(IF(Lån_Ikke_Betalt*Værdier_Angivet,Månedlig_Betaling,""), "") -> kr. 95.51 | F28: =IFERROR(IF(Lån_Ikke_Betalt*Værdier_Angivet,Hovedstol,""), "") -> kr. 77.74 | G28: =IFERROR(IF(Lån_Ikke_Betalt*Værdier_Angivet,Renter,""), "") -> kr. 17.76 | H28: =IFERROR(IF(Lån_Ikke_Betalt*Værdier_Angivet,Slut_saldo,""), "") -> kr. 3,797.78
B29: =IFERROR(IF(Lån_Ikke_Betalt*Værdier_Angivet,Betaling_Nummer,""), "") -> 17 | C29: =IFERROR(IF(Lån_Ikke_Betalt*Værdier_Angivet,Betalingsdato,""), "") -> 2021-09-13 | D29: =IFERROR(IF(Lån_Ikke_Betalt*Værdier_Angivet,Startsaldo,""), "") -> kr. 3,797.78 | E29: =IFERROR(IF(Lån_Ikke_Betalt*Værdier_Angivet,Månedlig_Betaling,""), "") -> kr. 95.51 | F29: =IFERROR(IF(Lån_Ikke_Betalt*Værdier_Angivet,Hovedstol,""), "") -> kr. 78.10 | G29: =IFERROR(IF(Lån_Ikke_Betalt*Værdier_Angivet,Renter,""), "") -> kr. 17.41 | H29: =IFERROR(IF(Lån_Ikke_Betalt*Værdier_Angivet,Slut_saldo,""), "") -> kr. 3,719.68
B30: =IFERROR(IF(Lån_Ikke_Betalt*Værdier_Angivet,Betaling_Nummer,""), "") -> 18 | C30: =IFERROR(IF(Lån_Ikke_Betalt*Værdier_Angivet,Betalingsdato,""), "") -> 2021-10-13 | D30: =IFERROR(IF(Lån_Ikke_Betalt*Værdier_Angivet,Startsaldo,""), "") -> kr. 3,719.68 | E30: =IFERROR(IF(Lån_Ikke_Betalt*Værdier_Angivet,Månedlig_Betaling,""), "") -> kr. 95.51 | F30: =IFERROR(IF(Lån_Ikke_Betalt*Værdier_Angivet,Hovedstol,""), "") -> kr. 78.46 | G30: =IFERROR(IF(Lån_Ikke_Betalt*Værdier_Angivet,Renter,""), "") -> kr. 17.05 | H30: =IFERROR(IF(Lån_Ikke_Betalt*Værdier_Angivet,Slut_saldo,""), "") -> kr. 3,641.23
B31: =IFERROR(IF(Lån_Ikke_Betalt*Værdier_Angivet,Betaling_Nummer,""), "") -> 19 | C31: =IFERROR(IF(Lån_Ikke_Betalt*Værdier_Angivet,Betalingsdato,""), "") -> 2021-11-13 | D31: =IFERROR(IF(Lån_Ikke_Betalt*Værdier_Angivet,Startsaldo,""), "") -> kr. 3,641.23 | E31: =IFERROR(IF(Lån_Ikke_Betalt*Værdier_Angivet,Månedlig_Betaling,""), "") -> kr. 95.51 | F31: =IFERROR(IF(Lån_Ikke_Betalt*Værdier_Angivet,Hovedstol,""), "") -> kr. 78.82 | G31: =IFERROR(IF(Lån_Ikke_Betalt*Værdier_Angivet,Renter,""), "") -> kr. 16.69 | H31: =IFERROR(IF(Lån_Ikke_Betalt*Værdier_Angivet,Slut_saldo,""), "") -> kr. 3,562.41
B32: =IFERROR(IF(Lån_Ikke_Betalt*Værdier_Angivet,Betaling_Nummer,""), "") -> 20 | C32: =IFERROR(IF(Lån_Ikke_Betalt*Værdier_Angivet,Betalingsdato,""), "") -> 2021-12-13 | D32: =IFERROR(IF(Lån_Ikke_Betalt*Værdier_Angivet,Startsaldo,""), "") -> kr. 3,562.41 | E32: =IFERROR(IF(Lån_Ikke_Betalt*Værdier_Angivet,Månedlig_Betaling,""), "") -> kr. 95.51 | F32: =IFERROR(IF(Lån_Ikke_Betalt*Værdier_Angivet,Hovedstol,""), "") -> kr. 79.18 | G32: =IFERROR(IF(Lån_Ikke_Betalt*Værdier_Angivet,Renter,""), "") -> kr. 16.33 | H32: =IFERROR(IF(Lån_Ikke_Betalt*Værdier_Angivet,Slut_saldo,""), "") -> kr. 3,483.23
B33: =IFERROR(IF(Lån_Ikke_Betalt*Værdier_Angivet,Betaling_Nummer,""), "") -> 21 | C33: =IFERROR(IF(Lån_Ikke_Betalt*Værdier_Angivet,Betalingsdato,""), "") -> 2022-01-13 | D33: =IFERROR(IF(Lån_Ikke_Betalt*Værdier_Angivet,Startsaldo,""), "") -> kr. 3,483.23 | E33: =IFERROR(IF(Lån_Ikke_Betalt*Værdier_Angivet,Månedlig_Betaling,""), "") -> kr. 95.51 | F33: =IFERROR(IF(Lån_Ikke_Betalt*Værdier_Angivet,Hovedstol,""), "") -> kr. 79.54 | G33: =IFERROR(IF(Lån_Ikke_Betalt*Værdier_Angivet,Renter,""), "") -> kr. 15.96 | H33: =IFERROR(IF(Lån_Ikke_Betalt*Værdier_Angivet,Slut_saldo,""), "") -> kr. 3,403.69
B34: =IFERROR(IF(Lån_Ikke_Betalt*Værdier_Angivet,Betaling_Nummer,""), "") -> 22 | C34: =IFERROR(IF(Lån_Ikke_Betalt*Værdier_Angivet,Betalingsdato,""), "") -> 2022-02-13 | D34: =IFERROR(IF(Lån_Ikke_Betalt*Værdier_Angivet,Startsaldo,""), "") -> kr. 3,403.69 | E34: =IFERROR(IF(Lån_Ikke_Betalt*Værdier_Angivet,Månedlig_Betaling,""), "") -> kr. 95.51 | F34: =IFERROR(IF(Lån_Ikke_Betalt*Værdier_Angivet,Hovedstol,""), "") -> kr. 79.91 | G34: =IFERROR(IF(Lån_Ikke_Betalt*Værdier_Angivet,Renter,""), "") -> kr. 15.60 | H34: =IFERROR(IF(Lån_Ikke_Betalt*Værdier_Angivet,Slut_saldo,""), "") -> kr. 3,323.78
B35: =IFERROR(IF(Lån_Ikke_Betalt*Værdier_Angivet,Betaling_Nummer,""), "") -> 23 | C35: =IFERROR(IF(Lån_Ikke_Betalt*Værdier_Angivet,Betalingsdato,""), "") -> 2022-03-13 | D35: =IFERROR(IF(Lån_Ikke_Betalt*Værdier_Angivet,Startsaldo,""), "") -> kr. 3,323.78 | E35: =IFERROR(IF(Lån_Ikke_Betalt*Værdier_Angivet,Månedlig_Betaling,""), "") -> kr. 95.51 | F35: =IFERROR(IF(Lån_Ikke_Betalt*Værdier_Angivet,Hovedstol,""), "") -> kr. 80.27 | G35: =IFERROR(IF(Lån_Ikke_Betalt*Værdier_Angivet,Renter,""), "") -> kr. 15.23 | H35: =IFERROR(IF(Lån_Ikke_Betalt*Værdier_Angivet,Slut_saldo,""), "") -> kr. 3,243.51
B36: =IFERROR(IF(Lån_Ikke_Betalt*Værdier_Angivet,Betaling_Nummer,""), "") -> 24 | C36: =IFERROR(IF(Lån_Ikke_Betalt*Værdier_Angivet,Betalingsdato,""), "") -> 2022-04-13 | D36: =IFERROR(IF(Lån_Ikke_Betalt*Værdier_Angivet,Startsaldo,""), "") -> kr. 3,243.51 | E36: =IFERROR(IF(Lån_Ikke_Betalt*Værdier_Angivet,Månedlig_Betaling,""), "") -> kr. 95.51 | F36: =IFERROR(IF(Lån_Ikke_Betalt*Værdier_Angivet,Hovedstol,""), "") -> kr. 80.64 | G36: =IFERROR(IF(Lån_Ikke_Betalt*Værdier_Angivet,Renter,""), "") -> kr. 14.87 | H36: =IFERROR(IF(Lån_Ikke_Betalt*Værdier_Angivet,Slut_saldo,""), "") -> kr. 3,162.87
B37: =IFERROR(IF(Lån_Ikke_Betalt*Værdier_Angivet,Betaling_Nummer,""), "") -> 25 | C37: =IFERROR(IF(Lån_Ikke_Betalt*Værdier_Angivet,Betalingsdato,""), "") -> 2022-05-13 | D37: =IFERROR(IF(Lån_Ikke_Betalt*Værdier_Angivet,Startsaldo,""), "") -> kr. 3,162.87 | E37: =IFERROR(IF(Lån_Ikke_Betalt*Værdier_Angivet,Månedlig_Betaling,""), "") -> kr. 95.51 | F37: =IFERROR(IF(Lån_Ikke_Betalt*Værdier_Angivet,Hovedstol,""), "") -> kr. 81.01 | G37: =IFERROR(IF(Lån_Ikke_Betalt*Værdier_Angivet,Renter,""), "") -> kr. 14.50 | H37: =IFERROR(IF(Lån_Ikke_Betalt*Værdier_Angivet,Slut_saldo,""), "") -> kr. 3,081.86
B38: =IFERROR(IF(Lån_Ikke_Betalt*Værdier_Angivet,Betaling_Nummer,""), "") -> 26 | C38: =IFERROR(IF(Lån_Ikke_Betalt*Værdier_Angivet,Betalingsdato,""), "") -> 2022-06-13 | D38: =IFERROR(IF(Lån_Ikke_Betalt*Værdier_Angivet,Startsaldo,""), "") -> kr. 3,081.86 | E38: =IFERROR(IF(Lån_Ikke_Betalt*Værdier_Angivet,Månedlig_Betaling,""), "") -> kr. 95.51 | F38: =IFERROR(IF(Lån_Ikke_Betalt*Værdier_Angivet,Hovedstol,""), "") -> kr. 81.38 | G38: =IFERROR(IF(Lån_Ikke_Betalt*Værdier_Angivet,Renter,""), "") -> kr. 14.13 | H38: =IFERROR(IF(Lån_Ikke_Betalt*Værdier_Angivet,Slut_saldo,""), "") -> kr. 3,000.48
B39: =IFERROR(IF(Lån_Ikke_Betalt*Værdier_Angivet,Betaling_Nummer,""), "") -> 27 | C39: =IFERROR(IF(Lån_Ikke_Betalt*Værdier_Angivet,Betalingsdato,""), "") -> 2022-07-13 | D39: =IFERROR(IF(Lån_Ikke_Betalt*Værdier_Angivet,Startsaldo,""), "") -> kr. 3,000.48 | E39: =IFERROR(IF(Lån_Ikke_Betalt*Værdier_Angivet,Månedlig_Betaling,""), "") -> kr. 95.51 | F39: =IFERROR(IF(Lån_Ikke_Betalt*Værdier_Angivet,Hovedstol,""), "") -> kr. 81.75 | G39: =IFERROR(IF(Lån_Ikke_Betalt*Værdier_Angivet,Renter,""), "") -> kr. 13.75 | H39: =IFERROR(IF(Lån_Ikke_Betalt*Værdier_Angivet,Slut_saldo,""), "") -> kr. 2,918.73
B40: =IFERROR(IF(Lån_Ikke_Betalt*Værdier_Angivet,Betaling_Nummer,""), "") -> 28 | C40: =IFERROR(IF(Lån_Ikke_Betalt*Værdier_Angivet,Betalingsdato,""), "") -> 2022-08-13 | D40: =IFERROR(IF(Lån_Ikke_Betalt*Værdier_Angivet,Startsaldo,""), "") -> kr. 2,918.73 | E40: =IFERROR(IF(Lån_Ikke_Betalt*Værdier_Angivet,Månedlig_Betaling,""), "") -> kr. 95.51 | F40: =IFERROR(IF(Lån_Ikke_Betalt*Værdier_Angivet,Hovedstol,""), "") -> kr. 82.13 | G40: =IFERROR(IF(Lån_Ikke_Betalt*Værdier_Angivet,Renter,""), "") -> kr. 13.38 | H40: =IFERROR(IF(Lån_Ikke_Betalt*Værdier_Angivet,Slut_saldo,""), "") -> kr. 2,836.60
B41: =IFERROR(IF(Lån_Ikke_Betalt*Værdier_Angivet,Betaling_Nummer,""), "") -> 29 | C41: =IFERROR(IF(Lån_Ikke_Betalt*Værdier_Angivet,Betalingsdato,""), "") -> 2022-09-13 | D41: =IFERROR(IF(Lån_Ikke_Betalt*Værdier_Angivet,Startsaldo,""), "") -> kr. 2,836.60 | E41: =IFERROR(IF(Lån_Ikke_Betalt*Værdier_Angivet,Månedlig_Betaling,""), "") -> kr. 95.51 | F41: =IFERROR(IF(Lån_Ikke_Betalt*Værdier_Angivet,Hovedstol,""), "") -> kr. 82.50 | G41: =IFERROR(IF(Lån_Ikke_Betalt*Værdier_Angivet,Renter,""), "") -> kr. 13.00 | H41: =IFERROR(IF(Lån_Ikke_Betalt*Værdier_Angivet,Slut_saldo,""), "") -> kr. 2,754.10
B42: =IFERROR(IF(Lån_Ikke_Betalt*Værdier_Angivet,Betaling_Nummer,""), "") -> 30 | C42: =IFERROR(IF(Lån_Ikke_Betalt*Værdier_Angivet,Betalingsdato,""), "") -> 2022-10-13 | D42: =IFERROR(IF(Lån_Ikke_Betalt*Værdier_Angivet,Startsaldo,""), "") -> kr. 2,754.10 | E42: =IFERROR(IF(Lån_Ikke_Betalt*Værdier_Angivet,Månedlig_Betaling,""), "") -> kr. 95.51 | F42: =IFERROR(IF(Lån_Ikke_Betalt*Værdier_Angivet,Hovedstol,""), "") -> kr. 82.88 | G42: =IFERROR(IF(Lån_Ikke_Betalt*Værdier_Angivet,Renter,""), "") -> kr. 12.62 | H42: =IFERROR(IF(Lån_Ikke_Betalt*Værdier_Angivet,Slut_saldo,""), "") -> kr. 2,671.21
B43: =IFERROR(IF(Lån_Ikke_Betalt*Værdier_Angivet,Betaling_Nummer,""), "") -> 31 | C43: =IFERROR(IF(Lån_Ikke_Betalt*Værdier_Angivet,Betalingsdato,""), "") -> 2022-11-13 | D43: =IFERROR(IF(Lån_Ikke_Betalt*Værdier_Angivet,Startsaldo,""), "") -> kr. 2,671.21 | E43: =IFERROR(IF(Lån_Ikke_Betalt*Værdier_Angivet,Månedlig_Betaling,""), "") -> kr. 95.51 | F43: =IFERROR(IF(Lån_Ikke_Betalt*Værdier_Angivet,Hovedstol,""), "") -> kr. 83.26 | G43: =IFERROR(IF(Lån_Ikke_Betalt*Værdier_Angivet,Renter,""), "") -> kr. 12.24 | H43: =IFERROR(IF(Lån_Ikke_Betalt*Værdier_Angivet,Slut_saldo,""), "") -> kr. 2,587.95
B44: =IFERROR(IF(Lån_Ikke_Betalt*Værdier_Angivet,Betaling_Nummer,""), "") -> 32 | C44: =IFERROR(IF(Lån_Ikke_Betalt*Værdier_Angivet,Betalingsdato,""), "") -> 2022-12-13 | D44: =IFERROR(IF(Lån_Ikke_Betalt*Værdier_Angivet,Startsaldo,""), "") -> kr. 2,587.95 | E44: =IFERROR(IF(Lån_Ikke_Betalt*Værdier_Angivet,Månedlig_Betaling,""), "") -> kr. 95.51 | F44: =IFERROR(IF(Lån_Ikke_Betalt*Værdier_Angivet,Hovedstol,""), "") -> kr. 83.64 | G44: =IFERROR(IF(Lån_Ikke_Betalt*Værdier_Angivet,Renter,""), "") -> kr. 11.86 | H44: =IFERROR(IF(Lån_Ikke_Betalt*Værdier_Angivet,Slut_saldo,""), "") -> kr. 2,504.31
B45: =IFERROR(IF(Lån_Ikke_Betalt*Værdier_Angivet,Betaling_Nummer,""), "") -> 33 | C45: =IFERROR(IF(Lån_Ikke_Betalt*Værdier_Angivet,Betalingsdato,""), "") -> 2023-01-13 | D45: =IFERROR(IF(Lån_Ikke_Betalt*Værdier_Angivet,Startsaldo,""), "") -> kr. 2,504.31 | E45: =IFERROR(IF(Lån_Ikke_Betalt*Værdier_Angivet,Månedlig_Betaling,""), "") -> kr. 95.51 | F45: =IFERROR(IF(Lån_Ikke_Betalt*Værdier_Angivet,Hovedstol,""), "") -> kr. 84.03 | G45: =IFERROR(IF(Lån_Ikke_Betalt*Værdier_Angivet,Renter,""), "") -> kr. 11.48 | H45: =IFERROR(IF(Lån_Ikke_Betalt*Værdier_Angivet,Slut_saldo,""), "") -> kr. 2,420.28
B46: =IFERROR(IF(Lån_Ikke_Betalt*Værdier_Angivet,Betaling_Nummer,""), "") -> 34 | C46: =IFERROR(IF(Lån_Ikke_Betalt*Værdier_Angivet,Betalingsdato,""), "") -> 2023-02-13 | D46: =IFERROR(IF(Lån_Ikke_Betalt*Værdier_Angivet,Startsaldo,""), "") -> kr. 2,420.28 | E46: =IFERROR(IF(Lån_Ikke_Betalt*Værdier_Angivet,Månedlig_Betaling,""), "") -> kr. 95.51 | F46: =IFERROR(IF(Lån_Ikke_Betalt*Værdier_Angivet,Hovedstol,""), "") -> kr. 84.41 | G46: =IFERROR(IF(Lån_Ikke_Betalt*Værdier_Angivet,Renter,""), "") -> kr. 11.09 | H46: =IFERROR(IF(Lån_Ikke_Betalt*Værdier_Angivet,Slut_saldo,""), "") -> kr. 2,335.87
B47: =IFERROR(IF(Lån_Ikke_Betalt*Værdier_Angivet,Betaling_Nummer,""), "") -> 35 | C47: =IFERROR(IF(Lån_Ikke_Betalt*Værdier_Angivet,Betalingsdato,""), "") -> 2023-03-13 | D47: =IFERROR(IF(Lån_Ikke_Betalt*Værdier_Angivet,Startsaldo,""), "") -> kr. 2,335.87 | E47: =IFERROR(IF(Lån_Ikke_Betalt*Værdier_Angivet,Månedlig_Betaling,""), "") -> kr. 95.51 | F47: =IFERROR(IF(Lån_Ikke_Betalt*Værdier_Angivet,Hovedstol,""), "") -> kr. 84.80 | G47: =IFERROR(IF(Lån_Ikke_Betalt*Værdier_Angivet,Renter,""), "") -> kr. 10.71 | H47: =IFERROR(IF(Lån_Ikke_Betalt*Værdier_Angivet,Slut_saldo,""), "") -> kr. 2,251.07
B48: =IFERROR(IF(Lån_Ikke_Betalt*Værdier_Angivet,Betaling_Nummer,""), "") -> 36 | C48: =IFERROR(IF(Lån_Ikke_Betalt*Værdier_Angivet,Betalingsdato,""), "") -> 2023-04-13 | D48: =IFERROR(IF(Lån_Ikke_Betalt*Værdier_Angivet,Startsaldo,""), "") -> kr. 2,251.07 | E48: =IFERROR(IF(Lån_Ikke_Betalt*Værdier_Angivet,Månedlig_Betaling,""), "") -> kr. 95.51 | F48: =IFERROR(IF(Lån_Ikke_Betalt*Værdier_Angivet,Hovedstol,""), "") -> kr. 85.19 | G48: =IFERROR(IF(Lån_Ikke_Betalt*Værdier_Angivet,Renter,""), "") -> kr. 10.32 | H48: =IFERROR(IF(Lån_Ikke_Betalt*Værdier_Angivet,Slut_saldo,""), "") -> kr. 2,165.88
B49: =IFERROR(IF(Lån_Ikke_Betalt*Værdier_Angivet,Betaling_Nummer,""), "") -> 37 | C49: =IFERROR(IF(Lån_Ikke_Betalt*Værdier_Angivet,Betalingsdato,""), "") -> 2023-05-13 | D49: =IFERROR(IF(Lån_Ikke_Betalt*Værdier_Angivet,Startsaldo,""), "") -> kr. 2,165.88 | E49: =IFERROR(IF(Lån_Ikke_Betalt*Værdier_Angivet,Månedlig_Betaling,""), "") -> kr. 95.51 | F49: =IFERROR(IF(Lån_Ikke_Betalt*Værdier_Angivet,Hovedstol,""), "") -> kr. 85.58 | G49: =IFERROR(IF(Lån_Ikke_Betalt*Værdier_Angivet,Renter,""), "") -> kr. 9.93 | H49: =IFERROR(IF(Lån_Ikke_Betalt*Værdier_Angivet,Slut_saldo,""), "") -> kr. 2,080.30
B50: =IFERROR(IF(Lån_Ikke_Betalt*Værdier_Angivet,Betaling_Nummer,""), "") -> 38 | C50: =IFERROR(IF(Lån_Ikke_Betalt*Værdier_Angivet,Betalingsdato,""), "") -> 2023-06-13 | D50: =IFERROR(IF(Lån_Ikke_Betalt*Værdier_Angivet,Startsaldo,""), "") -> kr. 2,080.30 | E50: =IFERROR(IF(Lån_Ikke_Betalt*Værdier_Angivet,Månedlig_Betaling,""), "") -> kr. 95.51 | F50: =IFERROR(IF(Lån_Ikke_Betalt*Værdier_Angivet,Hovedstol,""), "") -> kr. 85.97 | G50: =IFERROR(IF(Lån_Ikke_Betalt*Værdier_Angivet,Renter,""), "") -> kr. 9.53 | H50: =IFERROR(IF(Lån_Ikke_Betalt*Værdier_Angivet,Slut_saldo,""), "") -> kr. 1,994.33
B51: =IFERROR(IF(Lån_Ikke_Betalt*Værdier_Angivet,Betaling_Nummer,""), "") -> 39 | C51: =IFERROR(IF(Lån_Ikke_Betalt*Værdier_Angivet,Betalingsdato,""), "") -> 2023-07-13 | D51: =IFERROR(IF(Lån_Ikke_Betalt*Værdier_Angivet,Startsaldo,""), "") -> kr. 1,994.33 | E51: =IFERROR(IF(Lån_Ikke_Betalt*Værdier_Angivet,Månedlig_Betaling,""), "") -> kr. 95.51 | F51: =IFERROR(IF(Lån_Ikke_Betalt*Værdier_Angivet,Hovedstol,""), "") -> kr. 86.37 | G51: =IFERROR(IF(Lån_Ikke_Betalt*Værdier_Angivet,Renter,""), "") -> kr. 9.14 | H51: =IFERROR(IF(Lån_Ikke_Betalt*Værdier_Angivet,Slut_saldo,""), "") -> kr. 1,907.96
B52: =IFERROR(IF(Lån_Ikke_Betalt*Værdier_Angivet,Betaling_Nummer,""), "") -> 40 | C52: =IFERROR(IF(Lån_Ikke_Betalt*Værdier_Angivet,Betalingsdato,""), "") -> 2023-08-13 | D52: =IFERROR(IF(Lån_Ikke_Betalt*Værdier_Angivet,Startsaldo,""), "") -> kr. 1,907.96 | E52: =IFERROR(IF(Lån_Ikke_Betalt*Værdier_Angivet,Månedlig_Betaling,""), "") -> kr. 95.51 | F52: =IFERROR(IF(Lån_Ikke_Betalt*Værdier_Angivet,Hovedstol,""), "") -> kr. 86.76 | G52: =IFERROR(IF(Lån_Ikke_Betalt*Værdier_Angivet,Renter,""), "") -> kr. 8.74 | H52: =IFERROR(IF(Lån_Ikke_Betalt*Værdier_Angivet,Slut_saldo,""), "") -> kr. 1,821.20
B53: =IFERROR(IF(Lån_Ikke_Betalt*Værdier_Angivet,Betaling_Nummer,""), "") -> 41 | C53: =IFERROR(IF(Lån_Ikke_Betalt*Værdier_Angivet,Betalingsdato,""), "") -> 2023-09-13 | D53: =IFERROR(IF(Lån_Ikke_Betalt*Værdier_Angivet,Startsaldo,""), "") -> kr. 1,821.20 | E53: =IFERROR(IF(Lån_Ikke_Betalt*Værdier_Angivet,Månedlig_Betaling,""), "") -> kr. 95.51 | F53: =IFERROR(IF(Lån_Ikke_Betalt*Værdier_Angivet,Hovedstol,""), "") -> kr. 87.16 | G53: =IFERROR(IF(Lån_Ikke_Betalt*Værdier_Angivet,Renter,""), "") -> kr. 8.35 | H53: =IFERROR(IF(Lån_Ikke_Betalt*Værdier_Angivet,Slut_saldo,""), "") -> kr. 1,734.04
B54: =IFERROR(IF(Lån_Ikke_Betalt*Værdier_Angivet,Betaling_Nummer,""), "") -> 42 | C54: =IFERROR(IF(Lån_Ikke_Betalt*Værdier_Angivet,Betalingsdato,""), "") -> 2023-10-13 | D54: =IFERROR(IF(Lån_Ikke_Betalt*Værdier_Angivet,Startsaldo,""), "") -> kr. 1,734.04 | E54: =IFERROR(IF(Lån_Ikke_Betalt*Værdier_Angivet,Månedlig_Betaling,""), "") -> kr. 95.51 | F54: =IFERROR(IF(Lån_Ikke_Betalt*Værdier_Angivet,Hovedstol,""), "") -> kr. 87.56 | G54: =IFERROR(IF(Lån_Ikke_Betalt*Værdier_Angivet,Renter,""), "") -> kr. 7.95 | H54: =IFERROR(IF(Lån_Ikke_Betalt*Værdier_Angivet,Slut_saldo,""), "") -> kr. 1,646.49
B55: =IFERROR(IF(Lån_Ikke_Betalt*Værdier_Angivet,Betaling_Nummer,""), "") -> 43 | C55: =IFERROR(IF(Lån_Ikke_Betalt*Værdier_Angivet,Betalingsdato,""), "") -> 2023-11-13 | D55: =IFERROR(IF(Lån_Ikke_Betalt*Værdier_Angivet,Startsaldo,""), "") -> kr. 1,646.49 | E55: =IFERROR(IF(Lån_Ikke_Betalt*Værdier_Angivet,Månedlig_Betaling,""), "") -> kr. 95.51 | F55: =IFERROR(IF(Lån_Ikke_Betalt*Værdier_Angivet,Hovedstol,""), "") -> kr. 87.96 | G55: =IFERROR(IF(Lån_Ikke_Betalt*Værdier_Angivet,Renter,""), "") -> kr. 7.55 | H55: =IFERROR(IF(Lån_Ikke_Betalt*Værdier_Angivet,Slut_saldo,""), "") -> kr. 1,558.53
B56: =IFERROR(IF(Lån_Ikke_Betalt*Værdier_Angivet,Betaling_Nummer,""), "") -> 44 | C56: =IFERROR(IF(Lån_Ikke_Betalt*Værdier_Angivet,Betalingsdato,""), "") -> 2023-12-13 | D56: =IFERROR(IF(Lån_Ikke_Betalt*Værdier_Angivet,Startsaldo,""), "") -> kr. 1,558.53 | E56: =IFERROR(IF(Lån_Ikke_Betalt*Værdier_Angivet,Månedlig_Betaling,""), "") -> kr. 95.51 | F56: =IFERROR(IF(Lån_Ikke_Betalt*Værdier_Angivet,Hovedstol,""), "") -> kr. 88.36 | G56: =IFERROR(IF(Lån_Ikke_Betalt*Værdier_Angivet,Renter,""), "") -> kr. 7.14 | H56: =IFERROR(IF(Lån_Ikke_Betalt*Værdier_Angivet,Slut_saldo,""), "") -> kr. 1,470.16
B57: =IFERROR(IF(Lån_Ikke_Betalt*Værdier_Angivet,Betaling_Nummer,""), "") -> 45 | C57: =IFERROR(IF(Lån_Ikke_Betalt*Værdier_Angivet,Betalingsdato,""), "") -> 2024-01-13 | D57: =IFERROR(IF(Lån_Ikke_Betalt*Værdier_Angivet,Startsaldo,""), "") -> kr. 1,470.16 | E57: =IFERROR(IF(Lån_Ikke_Betalt*Værdier_Angivet,Månedlig_Betaling,""), "") -> kr. 95.51 | F57: =IFERROR(IF(Lån_Ikke_Betalt*Værdier_Angivet,Hovedstol,""), "") -> kr. 88.77 | G57: =IFERROR(IF(Lån_Ikke_Betalt*Værdier_Angivet,Renter,""), "") -> kr. 6.74 | H57: =IFERROR(IF(Lån_Ikke_Betalt*Værdier_Angivet,Slut_saldo,""), "") -> kr. 1,381.40
B58: =IFERROR(IF(Lån_Ikke_Betalt*Værdier_Angivet,Betaling_Nummer,""), "") -> 46 | C58: =IFERROR(IF(Lån_Ikke_Betalt*Værdier_Angivet,Betalingsdato,""), "") -> 2024-02-13 | D58: =IFERROR(IF(Lån_Ikke_Betalt*Værdier_Angivet,Startsaldo,""), "") -> kr. 1,381.40 | E58: =IFERROR(IF(Lån_Ikke_Betalt*Værdier_Angivet,Månedlig_Betaling,""), "") -> kr. 95.51 | F58: =IFERROR(IF(Lån_Ikke_Betalt*Værdier_Angivet,Hovedstol,""), "") -> kr. 89.17 | G58: =IFERROR(IF(Lån_Ikke_Betalt*Værdier_Angivet,Renter,""), "") -> kr. 6.33 | H58: =IFERROR(IF(Lån_Ikke_Betalt*Værdier_Angivet,Slut_saldo,""), "") -> kr. 1,292.22
B59: =IFERROR(IF(Lån_Ikke_Betalt*Værdier_Angivet,Betaling_Nummer,""), "") -> 47 | C59: =IFERROR(IF(Lån_Ikke_Betalt*Værdier_Angivet,Betalingsdato,""), "") -> 2024-03-13 | D59: =IFERROR(IF(Lån_Ikke_Betalt*Værdier_Angivet,Startsaldo,""), "") -> kr. 1,292.22 | E59: =IFERROR(IF(Lån_Ikke_Betalt*Værdier_Angivet,Månedlig_Betaling,""), "") -> kr. 95.51 | F59: =IFERROR(IF(Lån_Ikke_Betalt*Værdier_Angivet,Hovedstol,""), "") -> kr. 89.58 | G59: =IFERROR(IF(Lån_Ikke_Betalt*Værdier_Angivet,Renter,""), "") -> kr. 5.92 | H59: =IFERROR(IF(Lån_Ikke_Betalt*Værdier_Angivet,Slut_saldo,""), "") -> kr. 1,202.64
B60: =IFERROR(IF(Lån_Ikke_Betalt*Værdier_Angivet,Betaling_Nummer,""), "") -> 48 | C60: =IFERROR(IF(Lån_Ikke_Betalt*Værdier_Angivet,Betalingsdato,""), "") -> 2024-04-13 | D60: =IFERROR(IF(Lån_Ikke_Betalt*Værdier_Angivet,Startsaldo,""), "") -> kr. 1,202.64 | E60: =IFERROR(IF(Lån_Ikke_Betalt*Værdier_Angivet,Månedlig_Betaling,""), "") -> kr. 95.51 | F60: =IFERROR(IF(Lån_Ikke_Betalt*Værdier_Angivet,Hovedstol,""), "") -> kr. 89.99 | G60: =IFERROR(IF(Lån_Ikke_Betalt*Værdier_Angivet,Renter,""), "") -> kr. 5.51 | H60: =IFERROR(IF(Lån_Ikke_Betalt*Værdier_Angivet,Slut_saldo,""), "") -> kr. 1,112.64
B61: =IFERROR(IF(Lån_Ikke_Betalt*Værdier_Angivet,Betaling_Nummer,""), "") -> 49 | C61: =IFERROR(IF(Lån_Ikke_Betalt*Værdier_Angivet,Betalingsdato,""), "") -> 2024-05-13 | D61: =IFERROR(IF(Lån_Ikke_Betalt*Værdier_Angivet,Startsaldo,""), "") -> kr. 1,112.64 | E61: =IFERROR(IF(Lån_Ikke_Betalt*Værdier_Angivet,Månedlig_Betaling,""), "") -> kr. 95.51 | F61: =IFERROR(IF(Lån_Ikke_Betalt*Værdier_Angivet,Hovedstol,""), "") -> kr. 90.41 | G61: =IFERROR(IF(Lån_Ikke_Betalt*Værdier_Angivet,Renter,""), "") -> kr. 5.10 | H61: =IFERROR(IF(Lån_Ikke_Betalt*Værdier_Angivet,Slut_saldo,""), "") -> kr. 1,022.24
B62: =IFERROR(IF(Lån_Ikke_Betalt*Værdier_Angivet,Betaling_Nummer,""), "") -> 50 | C62: =IFERROR(IF(Lån_Ikke_Betalt*Værdier_Angivet,Betalingsdato,""), "") -> 2024-06-13 | D62: =IFERROR(IF(Lån_Ikke_Betalt*Værdier_Angivet,Startsaldo,""), "") -> kr. 1,022.24 | E62: =IFERROR(IF(Lån_Ikke_Betalt*Værdier_Angivet,Månedlig_Betaling,""), "") -> kr. 95.51 | F62: =IFERROR(IF(Lån_Ikke_Betalt*Værdier_Angivet,Hovedstol,""), "") -> kr. 90.82 | G62: =IFERROR(IF(Lån_Ikke_Betalt*Værdier_Angivet,Renter,""), "") -> kr. 4.69 | H62: =IFERROR(IF(Lån_Ikke_Betalt*Værdier_Angivet,Slut_saldo,""), "") -> kr. 931.42
B63: =IFERROR(IF(Lån_Ikke_Betalt*Værdier_Angivet,Betaling_Nummer,""), "") -> 51 | C63: =IFERROR(IF(Lån_Ikke_Betalt*Værdier_Angivet,Betalingsdato,""), "") -> 2024-07-13 | D63: =IFERROR(IF(Lån_Ikke_Betalt*Værdier_Angivet,Startsaldo,""), "") -> kr. 931.42 | E63: =IFERROR(IF(Lån_Ikke_Betalt*Værdier_Angivet,Månedlig_Betaling,""), "") -> kr. 95.51 | F63: =IFERROR(IF(Lån_Ikke_Betalt*Værdier_Angivet,Hovedstol,""), "") -> kr. 91.24 | G63: =IFERROR(IF(Lån_Ikke_Betalt*Værdier_Angivet,Renter,""), "") -> kr. 4.27 | H63: =IFERROR(IF(Lån_Ikke_Betalt*Værdier_Angivet,Slut_saldo,""), "") -> kr. 840.18
B64: =IFERROR(IF(Lån_Ikke_Betalt*Værdier_Angivet,Betaling_Nummer,""), "") -> 52 | C64: =IFERROR(IF(Lån_Ikke_Betalt*Værdier_Angivet,Betalingsdato,""), "") -> 2024-08-13 | D64: =IFERROR(IF(Lån_Ikke_Betalt*Værdier_Angivet,Startsaldo,""), "") -> kr. 840.18 | E64: =IFERROR(IF(Lån_Ikke_Betalt*Værdier_Angivet,Månedlig_Betaling,""), "") -> kr. 95.51 | F64: =IFERROR(IF(Lån_Ikke_Betalt*Værdier_Angivet,Hovedstol,""), "") -> kr. 91.65 | G64: =IFERROR(IF(Lån_Ikke_Betalt*Værdier_Angivet,Renter,""), "") -> kr. 3.85 | H64: =IFERROR(IF(Lån_Ikke_Betalt*Værdier_Angivet,Slut_saldo,""), "") -> kr. 748.53
B65: =IFERROR(IF(Lån_Ikke_Betalt*Værdier_Angivet,Betaling_Nummer,""), "") -> 53 | C65: =IFERROR(IF(Lån_Ikke_Betalt*Værdier_Angivet,Betalingsdato,""), "") -> 2024-09-13 | D65: =IFERROR(IF(Lån_Ikke_Betalt*Værdier_Angivet,Startsaldo,""), "") -> kr. 748.53 | E65: =IFERROR(IF(Lån_Ikke_Betalt*Værdier_Angivet,Månedlig_Betaling,""), "") -> kr. 95.51 | F65: =IFERROR(IF(Lån_Ikke_Betalt*Værdier_Angivet,Hovedstol,""), "") -> kr. 92.08 | G65: =IFERROR(IF(Lån_Ikke_Betalt*Værdier_Angivet,Renter,""), "") -> kr. 3.43 | H65: =IFERROR(IF(Lån_Ikke_Betalt*Værdier_Angivet,Slut_saldo,""), "") -> kr. 656.45
B66: =IFERROR(IF(Lån_Ikke_Betalt*Værdier_Angivet,Betaling_Nummer,""), "") -> 54 | C66: =IFERROR(IF(Lån_Ikke_Betalt*Værdier_Angivet,Betalingsdato,""), "") -> 2024-10-13 | D66: =IFERROR(IF(Lån_Ikke_Betalt*Værdier_Angivet,Startsaldo,""), "") -> kr. 656.45 | E66: =IFERROR(IF(Lån_Ikke_Betalt*Værdier_Angivet,Månedlig_Betaling,""), "") -> kr. 95.51 | F66: =IFERROR(IF(Lån_Ikke_Betalt*Værdier_Angivet,Hovedstol,""), "") -> kr. 92.50 | G66: =IFERROR(IF(Lån_Ikke_Betalt*Værdier_Angivet,Renter,""), "") -> kr. 3.01 | H66: =IFERROR(IF(Lån_Ikke_Betalt*Værdier_Angivet,Slut_saldo,""), "") -> kr. 563.95
B67: =IFERROR(IF(Lån_Ikke_Betalt*Værdier_Angivet,Betaling_Nummer,""), "") -> 55 | C67: =IFERROR(IF(Lån_Ikke_Betalt*Værdier_Angivet,Betalingsdato,""), "") -> 2024-11-13 | D67: =IFERROR(IF(Lån_Ikke_Betalt*Værdier_Angivet,Startsaldo,""), "") -> kr. 563.95 | E67: =IFERROR(IF(Lån_Ikke_Betalt*Værdier_Angivet,Månedlig_Betaling,""), "") -> kr. 95.51 | F67: =IFERROR(IF(Lån_Ikke_Betalt*Værdier_Angivet,Hovedstol,""), "") -> kr. 92.92 | G67: =IFERROR(IF(Lån_Ikke_Betalt*Værdier_Angivet,Renter,""), "") -> kr. 2.58 | H67: =IFERROR(IF(Lån_Ikke_Betalt*Værdier_Angivet,Slut_saldo,""), "") -> kr. 471.03
B68: =IFERROR(IF(Lån_Ikke_Betalt*Værdier_Angivet,Betaling_Nummer,""), "") -> 56 | C68: =IFERROR(IF(Lån_Ikke_Betalt*Værdier_Angivet,Betalingsdato,""), "") -> 2024-12-13 | D68: =IFERROR(IF(Lån_Ikke_Betalt*Værdier_Angivet,Startsaldo,""), "") -> kr. 471.03 | E68: =IFERROR(IF(Lån_Ikke_Betalt*Værdier_Angivet,Månedlig_Betaling,""), "") -> kr. 95.51 | F68: =IFERROR(IF(Lån_Ikke_Betalt*Værdier_Angivet,Hovedstol,""), "") -> kr. 93.35 | G68: =IFERROR(IF(Lån_Ikke_Betalt*Værdier_Angivet,Renter,""), "") -> kr. 2.16 | H68: =IFERROR(IF(Lån_Ikke_Betalt*Værdier_Angivet,Slut_saldo,""), "") -> kr. 377.69
B69: =IFERROR(IF(Lån_Ikke_Betalt*Værdier_Angivet,Betaling_Nummer,""), "") -> 57 | C69: =IFERROR(IF(Lån_Ikke_Betalt*Værdier_Angivet,Betalingsdato,""), "") -> 2025-01-13 | D69: =IFERROR(IF(Lån_Ikke_Betalt*Værdier_Angivet,Startsaldo,""), "") -> kr. 377.69 | E69: =IFERROR(IF(Lån_Ikke_Betalt*Værdier_Angivet,Månedlig_Betaling,""), "") -> kr. 95.51 | F69: =IFERROR(IF(Lån_Ikke_Betalt*Værdier_Angivet,Hovedstol,""), "") -> kr. 93.77 | G69: =IFERROR(IF(Lån_Ikke_Betalt*Værdier_Angivet,Renter,""), "") -> kr. 1.73 | H69: =IFERROR(IF(Lån_Ikke_Betalt*Værdier_Angivet,Slut_saldo,""), "") -> kr. 283.91
B70: =IFERROR(IF(Lån_Ikke_Betalt*Værdier_Angivet,Betaling_Nummer,""), "") -> 58 | C70: =IFERROR(IF(Lån_Ikke_Betalt*Værdier_Angivet,Betalingsdato,""), "") -> 2025-02-13 | D70: =IFERROR(IF(Lån_Ikke_Betalt*Værdier_Angivet,Startsaldo,""), "") -> kr. 283.91 | E70: =IFERROR(IF(Lån_Ikke_Betalt*Værdier_Angivet,Månedlig_Betaling,""), "") -> kr. 95.51 | F70: =IFERROR(IF(Lån_Ikke_Betalt*Værdier_Angivet,Hovedstol,""), "") -> kr. 94.20 | G70: =IFERROR(IF(Lån_Ikke_Betalt*Værdier_Angivet,Renter,""), "") -> kr. 1.30 | H70: =IFERROR(IF(Lån_Ikke_Betalt*Værdier_Angivet,Slut_saldo,""), "") -> kr. 189.71
B71: =IFERROR(IF(Lån_Ikke_Betalt*Værdier_Angivet,Betaling_Nummer,""), "") -> 59 | C71: =IFERROR(IF(Lån_Ikke_Betalt*Værdier_Angivet,Betalingsdato,""), "") -> 2025-03-13 | D71: =IFERROR(IF(Lån_Ikke_Betalt*Værdier_Angivet,Startsaldo,""), "") -> kr. 189.71 | E71: =IFERROR(IF(Lån_Ikke_Betalt*Værdier_Angivet,Månedlig_Betaling,""), "") -> kr. 95.51 | F71: =IFERROR(IF(Lån_Ikke_Betalt*Værdier_Angivet,Hovedstol,""), "") -> kr. 94.64 | G71: =IFERROR(IF(Lån_Ikke_Betalt*Værdier_Angivet,Renter,""), "") -> kr. 0.87 | H71: =IFERROR(IF(Lån_Ikke_Betalt*Værdier_Angivet,Slut_saldo,""), "") -> kr. 95.07
B72: =IFERROR(IF(Lån_Ikke_Betalt*Værdier_Angivet,Betaling_Nummer,""), "") -> 60 | C72: =IFERROR(IF(Lån_Ikke_Betalt*Værdier_Angivet,Betalingsdato,""), "") -> 2025-04-13 | D72: =IFERROR(IF(Lån_Ikke_Betalt*Værdier_Angivet,Startsaldo,""), "") -> kr. 95.07 | E72: =IFERROR(IF(Lån_Ikke_Betalt*Værdier_Angivet,Månedlig_Betaling,""), "") -> kr. 95.51 | F72: =IFERROR(IF(Lån_Ikke_Betalt*Værdier_Angivet,Hovedstol,""), "") -> kr. 95.07 | G72: =IFERROR(IF(Lån_Ikke_Betalt*Værdier_Angivet,Renter,""), "") -> kr. 0.44 | H72: =IFERROR(IF(Lån_Ikke_Betalt*Værdier_Angivet,Slut_saldo,""), "") -> kr. -0.00
B73: =IFERROR(IF(Lån_Ikke_Betalt*Værdier_Angivet,Betaling_Nummer,""), "") ->  | C73: =IFERROR(IF(Lån_Ikke_Betalt*Værdier_Angivet,Betalingsdato,""), "") ->  | D73: =IFERROR(IF(Lån_Ikke_Betalt*Værdier_Angivet,Startsaldo,""), "") ->  | E73: =IFERROR(IF(Lån_Ikke_Betalt*Værdier_Angivet,Månedlig_Betaling,""), "") ->  | F73: =IFERROR(IF(Lån_Ikke_Betalt*Værdier_Angivet,Hovedstol,""), "") ->  | G73: =IFERROR(IF(Lån_Ikke_Betalt*Værdier_Angivet,Renter,""), "") ->  | H73: =IFERROR(IF(Lån_Ikke_Betalt*Værdier_Angivet,Slut_saldo,""), "") -> 
B74: =IFERROR(IF(Lån_Ikke_Betalt*Værdier_Angivet,Betaling_Nummer,""), "") ->  | C74: =IFERROR(IF(Lån_Ikke_Betalt*Værdier_Angivet,Betalingsdato,""), "") ->  | D74: =IFERROR(IF(Lån_Ikke_Betalt*Værdier_Angivet,Startsaldo,""), "") ->  | E74: =IFERROR(IF(Lån_Ikke_Betalt*Værdier_Angivet,Månedlig_Betaling,""), "") ->  | F74: =IFERROR(IF(Lån_Ikke_Betalt*Værdier_Angivet,Hovedstol,""), "") ->  | G74: =IFERROR(IF(Lån_Ikke_Betalt*Værdier_Angivet,Renter,""), "") ->  | H74: =IFERROR(IF(Lån_Ikke_Betalt*Værdier_Angivet,Slut_saldo,""), "") -> 
B75: =IFERROR(IF(Lån_Ikke_Betalt*Værdier_Angivet,Betaling_Nummer,""), "") ->  | C75: =IFERROR(IF(Lån_Ikke_Betalt*Værdier_Angivet,Betalingsdato,""), "") ->  | D75: =IFERROR(IF(Lån_Ikke_Betalt*Værdier_Angivet,Startsaldo,""), "") ->  | E75: =IFERROR(IF(Lån_Ikke_Betalt*Værdier_Angivet,Månedlig_Betaling,""), "") ->  | F75: =IFERROR(IF(Lån_Ikke_Betalt*Værdier_Angivet,Hovedstol,""), "") ->  | G75: =IFERROR(IF(Lån_Ikke_Betalt*Værdier_Angivet,Renter,""), "") ->  | H75: =IFERROR(IF(Lån_Ikke_Betalt*Værdier_Angivet,Slut_saldo,""), "") -> 
B76: =IFERROR(IF(Lån_Ikke_Betalt*Værdier_Angivet,Betaling_Nummer,""), "") ->  | C76: =IFERROR(IF(Lån_Ikke_Betalt*Værdier_Angivet,Betalingsdato,""), "") ->  | D76: =IFERROR(IF(Lån_Ikke_Betalt*Værdier_Angivet,Startsaldo,""), "") ->  | E76: =IFERROR(IF(Lån_Ikke_Betalt*Værdier_Angivet,Månedlig_Betaling,""), "") ->  | F76: =IFERROR(IF(Lån_Ikke_Betalt*Værdier_Angivet,Hovedstol,""), "") ->  | G76: =IFERROR(IF(Lån_Ikke_Betalt*Værdier_Angivet,Renter,""), "") ->  | H76: =IFERROR(IF(Lån_Ikke_Betalt*Værdier_Angivet,Slut_saldo,""), "") -> 
B77: =IFERROR(IF(Lån_Ikke_Betalt*Værdier_Angivet,Betaling_Nummer,""), "") ->  | C77: =IFERROR(IF(Lån_Ikke_Betalt*Værdier_Angivet,Betalingsdato,""), "") ->  | D77: =IFERROR(IF(Lån_Ikke_Betalt*Værdier_Angivet,Startsaldo,""), "") ->  | E77: =IFERROR(IF(Lån_Ikke_Betalt*Værdier_Angivet,Månedlig_Betaling,""), "") ->  | F77: =IFERROR(IF(Lån_Ikke_Betalt*Værdier_Angivet,Hovedstol,""), "") ->  | G77: =IFERROR(IF(Lån_Ikke_Betalt*Værdier_Angivet,Renter,""), "") ->  | H77: =IFERROR(IF(Lån_Ikke_Betalt*Værdier_Angivet,Slut_saldo,""), "") -> 
B78: =IFERROR(IF(Lån_Ikke_Betalt*Værdier_Angivet,Betaling_Nummer,""), "") ->  | C78: =IFERROR(IF(Lån_Ikke_Betalt*Værdier_Angivet,Betalingsdato,""), "") ->  | D78: =IFERROR(IF(Lån_Ikke_Betalt*Værdier_Angivet,Startsaldo,""), "") ->  | E78: =IFERROR(IF(Lån_Ikke_Betalt*Værdier_Angivet,Månedlig_Betaling,""), "") ->  | F78: =IFERROR(IF(Lån_Ikke_Betalt*Værdier_Angivet,Hovedstol,""), "") ->  | G78: =IFERROR(IF(Lån_Ikke_Betalt*Værdier_Angivet,Renter,""), "") ->  | H78: =IFERROR(IF(Lån_Ikke_Betalt*Værdier_Angivet,Slut_saldo,""), "") -> 
B79: =IFERROR(IF(Lån_Ikke_Betalt*Værdier_Angivet,Betaling_Nummer,""), "") ->  | C79: =IFERROR(IF(Lån_Ikke_Betalt*Værdier_Angivet,Betalingsdato,""), "") ->  | D79: =IFERROR(IF(Lån_Ikke_Betalt*Værdier_Angivet,Startsaldo,""), "") ->  | E79: =IFERROR(IF(Lån_Ikke_Betalt*Værdier_Angivet,Månedlig_Betaling,""), "") ->  | F79: =IFERROR(IF(Lån_Ikke_Betalt*Værdier_Angivet,Hovedstol,""), "") ->  | G79: =IFERROR(IF(Lån_Ikke_Betalt*Værdier_Angivet,Renter,""), "") ->  | H79: =IFERROR(IF(Lån_Ikke_Betalt*Værdier_Angivet,Slut_saldo,""), "") -> 
B80: =IFERROR(IF(Lån_Ikke_Betalt*Værdier_Angivet,Betaling_Nummer,""), "") ->  | C80: =IFERROR(IF(Lån_Ikke_Betalt*Værdier_Angivet,Betalingsdato,""), "") ->  | D80: =IFERROR(IF(Lån_Ikke_Betalt*Værdier_Angivet,Startsaldo,""), "") ->  | E80: =IFERROR(IF(Lån_Ikke_Betalt*Værdier_Angivet,Månedlig_Betaling,""), "") ->  | F80: =IFERROR(IF(Lån_Ikke_Betalt*Værdier_Angivet,Hovedstol,""), "") ->  | G80: =IFERROR(IF(Lån_Ikke_Betalt*Værdier_Angivet,Renter,""), "") ->  | H80: =IFERROR(IF(Lån_Ikke_Betalt*Værdier_Angivet,Slut_saldo,""), "") -> 
B81: =IFERROR(IF(Lån_Ikke_Betalt*Værdier_Angivet,Betaling_Nummer,""), "") ->  | C81: =IFERROR(IF(Lån_Ikke_Betalt*Værdier_Angivet,Betalingsdato,""), "") ->  | D81: =IFERROR(IF(Lån_Ikke_Betalt*Værdier_Angivet,Startsaldo,""), "") ->  | E81: =IFERROR(IF(Lån_Ikke_Betalt*Værdier_Angivet,Månedlig_Betaling,""), "") ->  | F81: =IFERROR(IF(Lån_Ikke_Betalt*Værdier_Angivet,Hovedstol,""), "") ->  | G81: =IFERROR(IF(Lån_Ikke_Betalt*Værdier_Angivet,Renter,""), "") ->  | H81: =IFERROR(IF(Lån_Ikke_Betalt*Værdier_Angivet,Slut_saldo,""), "") -> 
B82: =IFERROR(IF(Lån_Ikke_Betalt*Værdier_Angivet,Betaling_Nummer,""), "") ->  | C82: =IFERROR(IF(Lån_Ikke_Betalt*Værdier_Angivet,Betalingsdato,""), "") ->  | D82: =IFERROR(IF(Lån_Ikke_Betalt*Værdier_Angivet,Startsaldo,""), "") ->  | E82: =IFERROR(IF(Lån_Ikke_Betalt*Værdier_Angivet,Månedlig_Betaling,""), "") ->  | F82: =IFERROR(IF(Lån_Ikke_Betalt*Værdier_Angivet,Hovedstol,""), "") ->  | G82: =IFERROR(IF(Lån_Ikke_Betalt*Værdier_Angivet,Renter,""), "") ->  | H82: =IFERROR(IF(Lån_Ikke_Betalt*Værdier_Angivet,Slut_saldo,""), "") -> 
B83: =IFERROR(IF(Lån_Ikke_Betalt*Værdier_Angivet,Betaling_Nummer,""), "") ->  | C83: =IFERROR(IF(Lån_Ikke_Betalt*Værdier_Angivet,Betalingsdato,""), "") ->  | D83: =IFERROR(IF(Lån_Ikke_Betalt*Værdier_Angivet,Startsaldo,""), "") ->  | E83: =IFERROR(IF(Lån_Ikke_Betalt*Værdier_Angivet,Månedlig_Betaling,""), "") ->  | F83: =IFERROR(IF(Lån_Ikke_Betalt*Værdier_Angivet,Hovedstol,""), "") ->  | G83: =IFERROR(IF(Lån_Ikke_Betalt*Værdier_Angivet,Renter,""), "") ->  | H83: =IFERROR(IF(Lån_Ikke_Betalt*Værdier_Angivet,Slut_saldo,""), "") -> 
B84: =IFERROR(IF(Lån_Ikke_Betalt*Værdier_Angivet,Betaling_Nummer,""), "") ->  | C84: =IFERROR(IF(Lån_Ikke_Betalt*Værdier_Angivet,Betalingsdato,""), "") ->  | D84: =IFERROR(IF(Lån_Ikke_Betalt*Værdier_Angivet,Startsaldo,""), "") ->  | E84: =IFERROR(IF(Lån_Ikke_Betalt*Værdier_Angivet,Månedlig_Betaling,""), "") ->  | F84: =IFERROR(IF(Lån_Ikke_Betalt*Værdier_Angivet,Hovedstol,""), "") ->  | G84: =IFERROR(IF(Lån_Ikke_Betalt*Værdier_Angivet,Renter,""), "") ->  | H84: =IFERROR(IF(Lån_Ikke_Betalt*Værdier_Angivet,Slut_saldo,""), "") -> 
B85: =IFERROR(IF(Lån_Ikke_Betalt*Værdier_Angivet,Betaling_Nummer,""), "") ->  | C85: =IFERROR(IF(Lån_Ikke_Betalt*Værdier_Angivet,Betalingsdato,""), "") ->  | D85: =IFERROR(IF(Lån_Ikke_Betalt*Værdier_Angivet,Startsaldo,""), "") ->  | E85: =IFERROR(IF(Lån_Ikke_Betalt*Værdier_Angivet,Månedlig_Betaling,""), "") ->  | F85: =IFERROR(IF(Lån_Ikke_Betalt*Værdier_Angivet,Hovedstol,""), "") ->  | G85: =IFERROR(IF(Lån_Ikke_Betalt*Værdier_Angivet,Renter,""), "") ->  | H85: =IFERROR(IF(Lån_Ikke_Betalt*Værdier_Angivet,Slut_saldo,""), "") -> 
B86: =IFERROR(IF(Lån_Ikke_Betalt*Værdier_Angivet,Betaling_Nummer,""), "") ->  | C86: =IFERROR(IF(Lån_Ikke_Betalt*Værdier_Angivet,Betalingsdato,""), "") ->  | D86: =IFERROR(IF(Lån_Ikke_Betalt*Værdier_Angivet,Startsaldo,""), "") ->  | E86: =IFERROR(IF(Lån_Ikke_Betalt*Værdier_Angivet,Månedlig_Betaling,""), "") ->  | F86: =IFERROR(IF(Lån_Ikke_Betalt*Værdier_Angivet,Hovedstol,""), "") ->  | G86: =IFERROR(IF(Lån_Ikke_Betalt*Værdier_Angivet,Renter,""), "") ->  | H86: =IFERROR(IF(Lån_Ikke_Betalt*Værdier_Angivet,Slut_saldo,""), "") -> 
B87: =IFERROR(IF(Lån_Ikke_Betalt*Værdier_Angivet,Betaling_Nummer,""), "") ->  | C87: =IFERROR(IF(Lån_Ikke_Betalt*Værdier_Angivet,Betalingsdato,""), "") ->  | D87: =IFERROR(IF(Lån_Ikke_Betalt*Værdier_Angivet,Startsaldo,""), "") ->  | E87: =IFERROR(IF(Lån_Ikke_Betalt*Værdier_Angivet,Månedlig_Betaling,""), "") ->  | F87: =IFERROR(IF(Lån_Ikke_Betalt*Værdier_Angivet,Hovedstol,""), "") ->  | G87: =IFERROR(IF(Lån_Ikke_Betalt*Værdier_Angivet,Renter,""), "") ->  | H87: =IFERROR(IF(Lån_Ikke_Betalt*Værdier_Angivet,Slut_saldo,""), "") -> 
B88: =IFERROR(IF(Lån_Ikke_Betalt*Værdier_Angivet,Betaling_Nummer,""), "") ->  | C88: =IFERROR(IF(Lån_Ikke_Betalt*Værdier_Angivet,Betalingsdato,""), "") ->  | D88: =IFERROR(IF(Lån_Ikke_Betalt*Værdier_Angivet,Startsaldo,""), "") ->  | E88: =IFERROR(IF(Lån_Ikke_Betalt*Værdier_Angivet,Månedlig_Betaling,""), "") ->  | F88: =IFERROR(IF(Lån_Ikke_Betalt*Værdier_Angivet,Hovedstol,""), "") ->  | G88: =IFERROR(IF(Lån_Ikke_Betalt*Værdier_Angivet,Renter,""), "") ->  | H88: =IFERROR(IF(Lån_Ikke_Betalt*Værdier_Angivet,Slut_saldo,""), "") -> 
B89: =IFERROR(IF(Lån_Ikke_Betalt*Værdier_Angivet,Betaling_Nummer,""), "") ->  | C89: =IFERROR(IF(Lån_Ikke_Betalt*Værdier_Angivet,Betalingsdato,""), "") ->  | D89: =IFERROR(IF(Lån_Ikke_Betalt*Værdier_Angivet,Startsaldo,""), "") ->  | E89: =IFERROR(IF(Lån_Ikke_Betalt*Værdier_Angivet,Månedlig_Betaling,""), "") ->  | F89: =IFERROR(IF(Lån_Ikke_Betalt*Værdier_Angivet,Hovedstol,""), "") ->  | G89: =IFERROR(IF(Lån_Ikke_Betalt*Værdier_Angivet,Renter,""), "") ->  | H89: =IFERROR(IF(Lån_Ikke_Betalt*Værdier_Angivet,Slut_saldo,""), "") -> 
B90: =IFERROR(IF(Lån_Ikke_Betalt*Værdier_Angivet,Betaling_Nummer,""), "") ->  | C90: =IFERROR(IF(Lån_Ikke_Betalt*Værdier_Angivet,Betalingsdato,""), "") ->  | D90: =IFERROR(IF(Lån_Ikke_Betalt*Værdier_Angivet,Startsaldo,""), "") ->  | E90: =IFERROR(IF(Lån_Ikke_Betalt*Værdier_Angivet,Månedlig_Betaling,""), "") ->  | F90: =IFERROR(IF(Lån_Ikke_Betalt*Værdier_Angivet,Hovedstol,""), "") ->  | G90: =IFERROR(IF(Lån_Ikke_Betalt*Værdier_Angivet,Renter,""), "") ->  | H90: =IFERROR(IF(Lån_Ikke_Betalt*Værdier_Angivet,Slut_saldo,""), "") -> 
B91: =IFERROR(IF(Lån_Ikke_Betalt*Værdier_Angivet,Betaling_Nummer,""), "") ->  | C91: =IFERROR(IF(Lån_Ikke_Betalt*Værdier_Angivet,Betalingsdato,""), "") ->  | D91: =IFERROR(IF(Lån_Ikke_Betalt*Værdier_Angivet,Startsaldo,""), "") ->  | E91: =IFERROR(IF(Lån_Ikke_Betalt*Værdier_Angivet,Månedlig_Betaling,""), "") ->  | F91: =IFERROR(IF(Lån_Ikke_Betalt*Værdier_Angivet,Hovedstol,""), "") ->  | G91: =IFERROR(IF(Lån_Ikke_Betalt*Værdier_Angivet,Renter,""), "") ->  | H91: =IFERROR(IF(Lån_Ikke_Betalt*Værdier_Angivet,Slut_saldo,""), "") -> 
B92: =IFERROR(IF(Lån_Ikke_Betalt*Værdier_Angivet,Betaling_Nummer,""), "") ->  | C92: =IFERROR(IF(Lån_Ikke_Betalt*Værdier_Angivet,Betalingsdato,""), "") ->  | D92: =IFERROR(IF(Lån_Ikke_Betalt*Værdier_Angivet,Startsaldo,""), "") ->  | E92: =IFERROR(IF(Lån_Ikke_Betalt*Værdier_Angivet,Månedlig_Betaling,""), "") ->  | F92: =IFERROR(IF(Lån_Ikke_Betalt*Værdier_Angivet,Hovedstol,""), "") ->  | G92: =IFERROR(IF(Lån_Ikke_Betalt*Værdier_Angivet,Renter,""), "") ->  | H92: =IFERROR(IF(Lån_Ikke_Betalt*Værdier_Angivet,Slut_saldo,""), "") -> 
B93: =IFERROR(IF(Lån_Ikke_Betalt*Værdier_Angivet,Betaling_Nummer,""), "") ->  | C93: =IFERROR(IF(Lån_Ikke_Betalt*Værdier_Angivet,Betalingsdato,""), "") ->  | D93: =IFERROR(IF(Lån_Ikke_Betalt*Værdier_Angivet,Startsaldo,""), "") ->  | E93: =IFERROR(IF(Lån_Ikke_Betalt*Værdier_Angivet,Månedlig_Betaling,""), "") ->  | F93: =IFERROR(IF(Lån_Ikke_Betalt*Værdier_Angivet,Hovedstol,""), "") ->  | G93: =IFERROR(IF(Lån_Ikke_Betalt*Værdier_Angivet,Renter,""), "") ->  | H93: =IFERROR(IF(Lån_Ikke_Betalt*Værdier_Angivet,Slut_saldo,""), "") -> 
B94: =IFERROR(IF(Lån_Ikke_Betalt*Værdier_Angivet,Betaling_Nummer,""), "") ->  | C94: =IFERROR(IF(Lån_Ikke_Betalt*Værdier_Angivet,Betalingsdato,""), "") ->  | D94: =IFERROR(IF(Lån_Ikke_Betalt*Værdier_Angivet,Startsaldo,""), "") ->  | E94: =IFERROR(IF(Lån_Ikke_Betalt*Værdier_Angivet,Månedlig_Betaling,""), "") ->  | F94: =IFERROR(IF(Lån_Ikke_Betalt*Værdier_Angivet,Hovedstol,""), "") ->  | G94: =IFERROR(IF(Lån_Ikke_Betalt*Værdier_Angivet,Renter,""), "") ->  | H94: =IFERROR(IF(Lån_Ikke_Betalt*Værdier_Angivet,Slut_saldo,""), "") -> 
B95: =IFERROR(IF(Lån_Ikke_Betalt*Værdier_Angivet,Betaling_Nummer,""), "") ->  | C95: =IFERROR(IF(Lån_Ikke_Betalt*Værdier_Angivet,Betalingsdato,""), "") ->  | D95: =IFERROR(IF(Lån_Ikke_Betalt*Værdier_Angivet,Startsaldo,""), "") ->  | E95: =IFERROR(IF(Lån_Ikke_Betalt*Værdier_Angivet,Månedlig_Betaling,""), "") ->  | F95: =IFERROR(IF(Lån_Ikke_Betalt*Værdier_Angivet,Hovedstol,""), "") ->  | G95: =IFERROR(IF(Lån_Ikke_Betalt*Værdier_Angivet,Renter,""), "") ->  | H95: =IFERROR(IF(Lån_Ikke_Betalt*Værdier_Angivet,Slut_saldo,""), "") -> 
B96: =IFERROR(IF(Lån_Ikke_Betalt*Værdier_Angivet,Betaling_Nummer,""), "") ->  | C96: =IFERROR(IF(Lån_Ikke_Betalt*Værdier_Angivet,Betalingsdato,""), "") ->  | D96: =IFERROR(IF(Lån_Ikke_Betalt*Værdier_Angivet,Startsaldo,""), "") ->  | E96: =IFERROR(IF(Lån_Ikke_Betalt*Værdier_Angivet,Månedlig_Betaling,""), "") ->  | F96: =IFERROR(IF(Lån_Ikke_Betalt*Værdier_Angivet,Hovedstol,""), "") ->  | G96: =IFERROR(IF(Lån_Ikke_Betalt*Værdier_Angivet,Renter,""), "") ->  | H96: =IFERROR(IF(Lån_Ikke_Betalt*Værdier_Angivet,Slut_saldo,""), "") -> 
B97: =IFERROR(IF(Lån_Ikke_Betalt*Værdier_Angivet,Betaling_Nummer,""), "") ->  | C97: =IFERROR(IF(Lån_Ikke_Betalt*Værdier_Angivet,Betalingsdato,""), "") ->  | D97: =IFERROR(IF(Lån_Ikke_Betalt*Værdier_Angivet,Startsaldo,""), "") ->  | E97: =IFERROR(IF(Lån_Ikke_Betalt*Værdier_Angivet,Månedlig_Betaling,""), "") ->  | F97: =IFERROR(IF(Lån_Ikke_Betalt*Værdier_Angivet,Hovedstol,""), "") ->  | G97: =IFERROR(IF(Lån_Ikke_Betalt*Værdier_Angivet,Renter,""), "") ->  | H97: =IFERROR(IF(Lån_Ikke_Betalt*Værdier_Angivet,Slut_saldo,""), "") -> 
B98: =IFERROR(IF(Lån_Ikke_Betalt*Værdier_Angivet,Betaling_Nummer,""), "") ->  | C98: =IFERROR(IF(Lån_Ikke_Betalt*Værdier_Angivet,Betalingsdato,""), "") ->  | D98: =IFERROR(IF(Lån_Ikke_Betalt*Værdier_Angivet,Startsaldo,""), "") ->  | E98: =IFERROR(IF(Lån_Ikke_Betalt*Værdier_Angivet,Månedlig_Betaling,""), "") ->  | F98: =IFERROR(IF(Lån_Ikke_Betalt*Værdier_Angivet,Hovedstol,""), "") ->  | G98: =IFERROR(IF(Lån_Ikke_Betalt*Værdier_Angivet,Renter,""), "") ->  | H98: =IFERROR(IF(Lån_Ikke_Betalt*Værdier_Angivet,Slut_saldo,""), "") -> 
B99: =IFERROR(IF(Lån_Ikke_Betalt*Værdier_Angivet,Betaling_Nummer,""), "") ->  | C99: =IFERROR(IF(Lån_Ikke_Betalt*Værdier_Angivet,Betalingsdato,""), "") ->  | D99: =IFERROR(IF(Lån_Ikke_Betalt*Værdier_Angivet,Startsaldo,""), "") ->  | E99: =IFERROR(IF(Lån_Ikke_Betalt*Værdier_Angivet,Månedlig_Betaling,""), "") ->  | F99: =IFERROR(IF(Lån_Ikke_Betalt*Værdier_Angivet,Hovedstol,""), "") ->  | G99: =IFERROR(IF(Lån_Ikke_Betalt*Værdier_Angivet,Renter,""), "") ->  | H99: =IFERROR(IF(Lån_Ikke_Betalt*Værdier_Angivet,Slut_saldo,""), "") -> 
B100: =IFERROR(IF(Lån_Ikke_Betalt*Værdier_Angivet,Betaling_Nummer,""), "") ->  | C100: =IFERROR(IF(Lån_Ikke_Betalt*Værdier_Angivet,Betalingsdato,""), "") ->  | D100: =IFERROR(IF(Lån_Ikke_Betalt*Værdier_Angivet,Startsaldo,""), "") ->  | E100: =IFERROR(IF(Lån_Ikke_Betalt*Værdier_Angivet,Månedlig_Betaling,""), "") ->  | F100: =IFERROR(IF(Lån_Ikke_Betalt*Værdier_Angivet,Hovedstol,""), "") ->  | G100: =IFERROR(IF(Lån_Ikke_Betalt*Værdier_Angivet,Renter,""), "") ->  | H100: =IFERROR(IF(Lån_Ikke_Betalt*Værdier_Angivet,Slut_saldo,""), "") -> 
B101: =IFERROR(IF(Lån_Ikke_Betalt*Værdier_Angivet,Betaling_Nummer,""), "") ->  | C101: =IFERROR(IF(Lån_Ikke_Betalt*Værdier_Angivet,Betalingsdato,""), "") ->  | D101: =IFERROR(IF(Lån_Ikke_Betalt*Værdier_Angivet,Startsaldo,""), "") ->  | E101: =IFERROR(IF(Lån_Ikke_Betalt*Værdier_Angivet,Månedlig_Betaling,""), "") ->  | F101: =IFERROR(IF(Lån_Ikke_Betalt*Værdier_Angivet,Hovedstol,""), "") ->  | G101: =IFERROR(IF(Lån_Ikke_Betalt*Værdier_Angivet,Renter,""), "") ->  | H101: =IFERROR(IF(Lån_Ikke_Betalt*Værdier_Angivet,Slut_saldo,""), "") -> 
B102: =IFERROR(IF(Lån_Ikke_Betalt*Værdier_Angivet,Betaling_Nummer,""), "") ->  | C102: =IFERROR(IF(Lån_Ikke_Betalt*Værdier_Angivet,Betalingsdato,""), "") ->  | D102: =IFERROR(IF(Lån_Ikke_Betalt*Værdier_Angivet,Startsaldo,""), "") ->  | E102: =IFERROR(IF(Lån_Ikke_Betalt*Værdier_Angivet,Månedlig_Betaling,""), "") ->  | F102: =IFERROR(IF(Lån_Ikke_Betalt*Værdier_Angivet,Hovedstol,""), "") ->  | G102: =IFERROR(IF(Lån_Ikke_Betalt*Værdier_Angivet,Renter,""), "") ->  | H102: =IFERROR(IF(Lån_Ikke_Betalt*Værdier_Angivet,Slut_saldo,""), "") -> 
B103: =IFERROR(IF(Lån_Ikke_Betalt*Værdier_Angivet,Betaling_Nummer,""), "") ->  | C103: =IFERROR(IF(Lån_Ikke_Betalt*Værdier_Angivet,Betalingsdato,""), "") ->  | D103: =IFERROR(IF(Lån_Ikke_Betalt*Værdier_Angivet,Startsaldo,""), "") ->  | E103: =IFERROR(IF(Lån_Ikke_Betalt*Værdier_Angivet,Månedlig_Betaling,""), "") ->  | F103: =IFERROR(IF(Lån_Ikke_Betalt*Værdier_Angivet,Hovedstol,""), "") ->  | G103: =IFERROR(IF(Lån_Ikke_Betalt*Værdier_Angivet,Renter,""), "") ->  | H103: =IFERROR(IF(Lån_Ikke_Betalt*Værdier_Angivet,Slut_saldo,""), "") -> 
B104: =IFERROR(IF(Lån_Ikke_Betalt*Værdier_Angivet,Betaling_Nummer,""), "") ->  | C104: =IFERROR(IF(Lån_Ikke_Betalt*Værdier_Angivet,Betalingsdato,""), "") ->  | D104: =IFERROR(IF(Lån_Ikke_Betalt*Værdier_Angivet,Startsaldo,""), "") ->  | E104: =IFERROR(IF(Lån_Ikke_Betalt*Værdier_Angivet,Månedlig_Betaling,""), "") ->  | F104: =IFERROR(IF(Lån_Ikke_Betalt*Værdier_Angivet,Hovedstol,""), "") ->  | G104: =IFERROR(IF(Lån_Ikke_Betalt*Værdier_Angivet,Renter,""), "") ->  | H104: =IFERROR(IF(Lån_Ikke_Betalt*Værdier_Angivet,Slut_saldo,""), "") -> 
B105: =IFERROR(IF(Lån_Ikke_Betalt*Værdier_Angivet,Betaling_Nummer,""), "") ->  | C105: =IFERROR(IF(Lån_Ikke_Betalt*Værdier_Angivet,Betalingsdato,""), "") ->  | D105: =IFERROR(IF(Lån_Ikke_Betalt*Værdier_Angivet,Startsaldo,""), "") ->  | E105: =IFERROR(IF(Lån_Ikke_Betalt*Værdier_Angivet,Månedlig_Betaling,""), "") ->  | F105: =IFERROR(IF(Lån_Ikke_Betalt*Værdier_Angivet,Hovedstol,""), "") ->  | G105: =IFERROR(IF(Lån_Ikke_Betalt*Værdier_Angivet,Renter,""), "") ->  | H105: =IFERROR(IF(Lån_Ikke_Betalt*Værdier_Angivet,Slut_saldo,""), "") -> 
B106: =IFERROR(IF(Lån_Ikke_Betalt*Værdier_Angivet,Betaling_Nummer,""), "") ->  | C106: =IFERROR(IF(Lån_Ikke_Betalt*Værdier_Angivet,Betalingsdato,""), "") ->  | D106: =IFERROR(IF(Lån_Ikke_Betalt*Værdier_Angivet,Startsaldo,""), "") ->  | E106: =IFERROR(IF(Lån_Ikke_Betalt*Værdier_Angivet,Månedlig_Betaling,""), "") ->  | F106: =IFERROR(IF(Lån_Ikke_Betalt*Værdier_Angivet,Hovedstol,""), "") ->  | G106: =IFERROR(IF(Lån_Ikke_Betalt*Værdier_Angivet,Renter,""), "") ->  | H106: =IFERROR(IF(Lån_Ikke_Betalt*Værdier_Angivet,Slut_saldo,""), "") -> 
B107: =IFERROR(IF(Lån_Ikke_Betalt*Værdier_Angivet,Betaling_Nummer,""), "") ->  | C107: =IFERROR(IF(Lån_Ikke_Betalt*Værdier_Angivet,Betalingsdato,""), "") ->  | D107: =IFERROR(IF(Lån_Ikke_Betalt*Værdier_Angivet,Startsaldo,""), "") ->  | E107: =IFERROR(IF(Lån_Ikke_Betalt*Værdier_Angivet,Månedlig_Betaling,""), "") ->  | F107: =IFERROR(IF(Lån_Ikke_Betalt*Værdier_Angivet,Hovedstol,""), "") ->  | G107: =IFERROR(IF(Lån_Ikke_Betalt*Værdier_Angivet,Renter,""), "") ->  | H107: =IFERROR(IF(Lån_Ikke_Betalt*Værdier_Angivet,Slut_saldo,""), "") -> 
B108: =IFERROR(IF(Lån_Ikke_Betalt*Værdier_Angivet,Betaling_Nummer,""), "") ->  | C108: =IFERROR(IF(Lån_Ikke_Betalt*Værdier_Angivet,Betalingsdato,""), "") ->  | D108: =IFERROR(IF(Lån_Ikke_Betalt*Værdier_Angivet,Startsaldo,""), "") ->  | E108: =IFERROR(IF(Lån_Ikke_Betalt*Værdier_Angivet,Månedlig_Betaling,""), "") ->  | F108: =IFERROR(IF(Lån_Ikke_Betalt*Værdier_Angivet,Hovedstol,""), "") ->  | G108: =IFERROR(IF(Lån_Ikke_Betalt*Værdier_Angivet,Renter,""), "") ->  | H108: =IFERROR(IF(Lån_Ikke_Betalt*Værdier_Angivet,Slut_saldo,""), "") -> 
B109: =IFERROR(IF(Lån_Ikke_Betalt*Værdier_Angivet,Betaling_Nummer,""), "") ->  | C109: =IFERROR(IF(Lån_Ikke_Betalt*Værdier_Angivet,Betalingsdato,""), "") ->  | D109: =IFERROR(IF(Lån_Ikke_Betalt*Værdier_Angivet,Startsaldo,""), "") ->  | E109: =IFERROR(IF(Lån_Ikke_Betalt*Værdier_Angivet,Månedlig_Betaling,""), "") ->  | F109: =IFERROR(IF(Lån_Ikke_Betalt*Værdier_Angivet,Hovedstol,""), "") ->  | G109: =IFERROR(IF(Lån_Ikke_Betalt*Værdier_Angivet,Renter,""), "") ->  | H109: =IFERROR(IF(Lån_Ikke_Betalt*Værdier_Angivet,Slut_saldo,""), "") -> 
B110: =IFERROR(IF(Lån_Ikke_Betalt*Værdier_Angivet,Betaling_Nummer,""), "") ->  | C110: =IFERROR(IF(Lån_Ikke_Betalt*Værdier_Angivet,Betalingsdato,""), "") ->  | D110: =IFERROR(IF(Lån_Ikke_Betalt*Værdier_Angivet,Startsaldo,""), "") ->  | E110: =IFERROR(IF(Lån_Ikke_Betalt*Værdier_Angivet,Månedlig_Betaling,""), "") ->  | F110: =IFERROR(IF(Lån_Ikke_Betalt*Værdier_Angivet,Hovedstol,""), "") ->  | G110: =IFERROR(IF(Lån_Ikke_Betalt*Værdier_Angivet,Renter,""), "") ->  | H110: =IFERROR(IF(Lån_Ikke_Betalt*Værdier_Angivet,Slut_saldo,""), "") -> 
B111: =IFERROR(IF(Lån_Ikke_Betalt*Værdier_Angivet,Betaling_Nummer,""), "") ->  | C111: =IFERROR(IF(Lån_Ikke_Betalt*Værdier_Angivet,Betalingsdato,""), "") ->  | D111: =IFERROR(IF(Lån_Ikke_Betalt*Værdier_Angivet,Startsaldo,""), "") ->  | E111: =IFERROR(IF(Lån_Ikke_Betalt*Værdier_Angivet,Månedlig_Betaling,""), "") ->  | F111: =IFERROR(IF(Lån_Ikke_Betalt*Værdier_Angivet,Hovedstol,""), "") ->  | G111: =IFERROR(IF(Lån_Ikke_Betalt*Værdier_Angivet,Renter,""), "") ->  | H111: =IFERROR(IF(Lån_Ikke_Betalt*Værdier_Angivet,Slut_saldo,""), "") -> 
B112: =IFERROR(IF(Lån_Ikke_Betalt*Værdier_Angivet,Betaling_Nummer,""), "") ->  | C112: =IFERROR(IF(Lån_Ikke_Betalt*Værdier_Angivet,Betalingsdato,""), "") ->  | D112: =IFERROR(IF(Lån_Ikke_Betalt*Værdier_Angivet,Startsaldo,""), "") ->  | E112: =IFERROR(IF(Lån_Ikke_Betalt*Værdier_Angivet,Månedlig_Betaling,""), "") ->  | F112: =IFERROR(IF(Lån_Ikke_Betalt*Værdier_Angivet,Hovedstol,""), "") ->  | G112: =IFERROR(IF(Lån_Ikke_Betalt*Værdier_Angivet,Renter,""), "") ->  | H112: =IFERROR(IF(Lån_Ikke_Betalt*Værdier_Angivet,Slut_saldo,""), "") -> 
B113: =IFERROR(IF(Lån_Ikke_Betalt*Værdier_Angivet,Betaling_Nummer,""), "") ->  | C113: =IFERROR(IF(Lån_Ikke_Betalt*Værdier_Angivet,Betalingsdato,""), "") ->  | D113: =IFERROR(IF(Lån_Ikke_Betalt*Værdier_Angivet,Startsaldo,""), "") ->  | E113: =IFERROR(IF(Lån_Ikke_Betalt*Værdier_Angivet,Månedlig_Betaling,""), "") ->  | F113: =IFERROR(IF(Lån_Ikke_Betalt*Værdier_Angivet,Hovedstol,""), "") ->  | G113: =IFERROR(IF(Lån_Ikke_Betalt*Værdier_Angivet,Renter,""), "") ->  | H113: =IFERROR(IF(Lån_Ikke_Betalt*Værdier_Angivet,Slut_saldo,""), "") -> 
B114: =IFERROR(IF(Lån_Ikke_Betalt*Værdier_Angivet,Betaling_Nummer,""), "") ->  | C114: =IFERROR(IF(Lån_Ikke_Betalt*Værdier_Angivet,Betalingsdato,""), "") ->  | D114: =IFERROR(IF(Lån_Ikke_Betalt*Værdier_Angivet,Startsaldo,""), "") ->  | E114: =IFERROR(IF(Lån_Ikke_Betalt*Værdier_Angivet,Månedlig_Betaling,""), "") ->  | F114: =IFERROR(IF(Lån_Ikke_Betalt*Værdier_Angivet,Hovedstol,""), "") ->  | G114: =IFERROR(IF(Lån_Ikke_Betalt*Værdier_Angivet,Renter,""), "") ->  | H114: =IFERROR(IF(Lån_Ikke_Betalt*Værdier_Angivet,Slut_saldo,""), "") -> 
B115: =IFERROR(IF(Lån_Ikke_Betalt*Værdier_Angivet,Betaling_Nummer,""), "") ->  | C115: =IFERROR(IF(Lån_Ikke_Betalt*Værdier_Angivet,Betalingsdato,""), "") ->  | D115: =IFERROR(IF(Lån_Ikke_Betalt*Værdier_Angivet,Startsaldo,""), "") ->  | E115: =IFERROR(IF(Lån_Ikke_Betalt*Værdier_Angivet,Månedlig_Betaling,""), "") ->  | F115: =IFERROR(IF(Lån_Ikke_Betalt*Værdier_Angivet,Hovedstol,""), "") ->  | G115: =IFERROR(IF(Lån_Ikke_Betalt*Værdier_Angivet,Renter,""), "") ->  | H115: =IFERROR(IF(Lån_Ikke_Betalt*Værdier_Angivet,Slut_saldo,""), "") -> 
B116: =IFERROR(IF(Lån_Ikke_Betalt*Værdier_Angivet,Betaling_Nummer,""), "") ->  | C116: =IFERROR(IF(Lån_Ikke_Betalt*Værdier_Angivet,Betalingsdato,""), "") ->  | D116: =IFERROR(IF(Lån_Ikke_Betalt*Værdier_Angivet,Startsaldo,""), "") ->  | E116: =IFERROR(IF(Lån_Ikke_Betalt*Værdier_Angivet,Månedlig_Betaling,""), "") ->  | F116: =IFERROR(IF(Lån_Ikke_Betalt*Værdier_Angivet,Hovedstol,""), "") ->  | G116: =IFERROR(IF(Lån_Ikke_Betalt*Værdier_Angivet,Renter,""), "") ->  | H116: =IFERROR(IF(Lån_Ikke_Betalt*Værdier_Angivet,Slut_saldo,""), "") -> 
B117: =IFERROR(IF(Lån_Ikke_Betalt*Værdier_Angivet,Betaling_Nummer,""), "") ->  | C117: =IFERROR(IF(Lån_Ikke_Betalt*Værdier_Angivet,Betalingsdato,""), "") ->  | D117: =IFERROR(IF(Lån_Ikke_Betalt*Værdier_Angivet,Startsaldo,""), "") ->  | E117: =IFERROR(IF(Lån_Ikke_Betalt*Værdier_Angivet,Månedlig_Betaling,""), "") ->  | F117: =IFERROR(IF(Lån_Ikke_Betalt*Værdier_Angivet,Hovedstol,""), "") ->  | G117: =IFERROR(IF(Lån_Ikke_Betalt*Værdier_Angivet,Renter,""), "") ->  | H117: =IFERROR(IF(Lån_Ikke_Betalt*Værdier_Angivet,Slut_saldo,""), "") -> 
B118: =IFERROR(IF(Lån_Ikke_Betalt*Værdier_Angivet,Betaling_Nummer,""), "") ->  | C118: =IFERROR(IF(Lån_Ikke_Betalt*Værdier_Angivet,Betalingsdato,""), "") ->  | D118: =IFERROR(IF(Lån_Ikke_Betalt*Værdier_Angivet,Startsaldo,""), "") ->  | E118: =IFERROR(IF(Lån_Ikke_Betalt*Værdier_Angivet,Månedlig_Betaling,""), "") ->  | F118: =IFERROR(IF(Lån_Ikke_Betalt*Værdier_Angivet,Hovedstol,""), "") ->  | G118: =IFERROR(IF(Lån_Ikke_Betalt*Værdier_Angivet,Renter,""), "") ->  | H118: =IFERROR(IF(Lån_Ikke_Betalt*Værdier_Angivet,Slut_saldo,""), "") -> 
B119: =IFERROR(IF(Lån_Ikke_Betalt*Værdier_Angivet,Betaling_Nummer,""), "") ->  | C119: =IFERROR(IF(Lån_Ikke_Betalt*Værdier_Angivet,Betalingsdato,""), "") ->  | D119: =IFERROR(IF(Lån_Ikke_Betalt*Værdier_Angivet,Startsaldo,""), "") ->  | E119: =IFERROR(IF(Lån_Ikke_Betalt*Værdier_Angivet,Månedlig_Betaling,""), "") ->  | F119: =IFERROR(IF(Lån_Ikke_Betalt*Værdier_Angivet,Hovedstol,""), "") ->  | G119: =IFERROR(IF(Lån_Ikke_Betalt*Værdier_Angivet,Renter,""), "") ->  | H119: =IFERROR(IF(Lån_Ikke_Betalt*Værdier_Angivet,Slut_saldo,""), "") -> 
B120: =IFERROR(IF(Lån_Ikke_Betalt*Værdier_Angivet,Betaling_Nummer,""), "") ->  | C120: =IFERROR(IF(Lån_Ikke_Betalt*Værdier_Angivet,Betalingsdato,""), "") ->  | D120: =IFERROR(IF(Lån_Ikke_Betalt*Værdier_Angivet,Startsaldo,""), "") ->  | E120: =IFERROR(IF(Lån_Ikke_Betalt*Værdier_Angivet,Månedlig_Betaling,""), "") ->  | F120: =IFERROR(IF(Lån_Ikke_Betalt*Værdier_Angivet,Hovedstol,""), "") ->  | G120: =IFERROR(IF(Lån_Ikke_Betalt*Værdier_Angivet,Renter,""), "") ->  | H120: =IFERROR(IF(Lån_Ikke_Betalt*Værdier_Angivet,Slut_saldo,""), "") -> 
B121: =IFERROR(IF(Lån_Ikke_Betalt*Værdier_Angivet,Betaling_Nummer,""), "") ->  | C121: =IFERROR(IF(Lån_Ikke_Betalt*Værdier_Angivet,Betalingsdato,""), "") ->  | D121: =IFERROR(IF(Lån_Ikke_Betalt*Værdier_Angivet,Startsaldo,""), "") ->  | E121: =IFERROR(IF(Lån_Ikke_Betalt*Værdier_Angivet,Månedlig_Betaling,""), "") ->  | F121: =IFERROR(IF(Lån_Ikke_Betalt*Værdier_Angivet,Hovedstol,""), "") ->  | G121: =IFERROR(IF(Lån_Ikke_Betalt*Værdier_Angivet,Renter,""), "") ->  | H121: =IFERROR(IF(Lån_Ikke_Betalt*Værdier_Angivet,Slut_saldo,""), "") -> 
B122: =IFERROR(IF(Lån_Ikke_Betalt*Værdier_Angivet,Betaling_Nummer,""), "") ->  | C122: =IFERROR(IF(Lån_Ikke_Betalt*Værdier_Angivet,Betalingsdato,""), "") ->  | D122: =IFERROR(IF(Lån_Ikke_Betalt*Værdier_Angivet,Startsaldo,""), "") ->  | E122: =IFERROR(IF(Lån_Ikke_Betalt*Værdier_Angivet,Månedlig_Betaling,""), "") ->  | F122: =IFERROR(IF(Lån_Ikke_Betalt*Værdier_Angivet,Hovedstol,""), "") ->  | G122: =IFERROR(IF(Lån_Ikke_Betalt*Værdier_Angivet,Renter,""), "") ->  | H122: =IFERROR(IF(Lån_Ikke_Betalt*Værdier_Angivet,Slut_saldo,""), "") -> 
B123: =IFERROR(IF(Lån_Ikke_Betalt*Værdier_Angivet,Betaling_Nummer,""), "") ->  | C123: =IFERROR(IF(Lån_Ikke_Betalt*Værdier_Angivet,Betalingsdato,""), "") ->  | D123: =IFERROR(IF(Lån_Ikke_Betalt*Værdier_Angivet,Startsaldo,""), "") ->  | E123: =IFERROR(IF(Lån_Ikke_Betalt*Værdier_Angivet,Månedlig_Betaling,""), "") ->  | F123: =IFERROR(IF(Lån_Ikke_Betalt*Værdier_Angivet,Hovedstol,""), "") ->  | G123: =IFERROR(IF(Lån_Ikke_Betalt*Værdier_Angivet,Renter,""), "") ->  | H123: =IFERROR(IF(Lån_Ikke_Betalt*Værdier_Angivet,Slut_saldo,""), "") -> 
B124: =IFERROR(IF(Lån_Ikke_Betalt*Værdier_Angivet,Betaling_Nummer,""), "") ->  | C124: =IFERROR(IF(Lån_Ikke_Betalt*Værdier_Angivet,Betalingsdato,""), "") ->  | D124: =IFERROR(IF(Lån_Ikke_Betalt*Værdier_Angivet,Startsaldo,""), "") ->  | E124: =IFERROR(IF(Lån_Ikke_Betalt*Værdier_Angivet,Månedlig_Betaling,""), "") ->  | F124: =IFERROR(IF(Lån_Ikke_Betalt*Værdier_Angivet,Hovedstol,""), "") ->  | G124: =IFERROR(IF(Lån_Ikke_Betalt*Værdier_Angivet,Renter,""), "") ->  | H124: =IFERROR(IF(Lån_Ikke_Betalt*Værdier_Angivet,Slut_saldo,""), "") -> 
B125: =IFERROR(IF(Lån_Ikke_Betalt*Værdier_Angivet,Betaling_Nummer,""), "") ->  | C125: =IFERROR(IF(Lån_Ikke_Betalt*Værdier_Angivet,Betalingsdato,""), "") ->  | D125: =IFERROR(IF(Lån_Ikke_Betalt*Værdier_Angivet,Startsaldo,""), "") ->  | E125: =IFERROR(IF(Lån_Ikke_Betalt*Værdier_Angivet,Månedlig_Betaling,""), "") ->  | F125: =IFERROR(IF(Lån_Ikke_Betalt*Værdier_Angivet,Hovedstol,""), "") ->  | G125: =IFERROR(IF(Lån_Ikke_Betalt*Værdier_Angivet,Renter,""), "") ->  | H125: =IFERROR(IF(Lån_Ikke_Betalt*Værdier_Angivet,Slut_saldo,""), "") -> 
B126: =IFERROR(IF(Lån_Ikke_Betalt*Værdier_Angivet,Betaling_Nummer,""), "") ->  | C126: =IFERROR(IF(Lån_Ikke_Betalt*Værdier_Angivet,Betalingsdato,""), "") ->  | D126: =IFERROR(IF(Lån_Ikke_Betalt*Værdier_Angivet,Startsaldo,""), "") ->  | E126: =IFERROR(IF(Lån_Ikke_Betalt*Værdier_Angivet,Månedlig_Betaling,""), "") ->  | F126: =IFERROR(IF(Lån_Ikke_Betalt*Værdier_Angivet,Hovedstol,""), "") ->  | G126: =IFERROR(IF(Lån_Ikke_Betalt*Værdier_Angivet,Renter,""), "") ->  | H126: =IFERROR(IF(Lån_Ikke_Betalt*Værdier_Angivet,Slut_saldo,""), "") -> 
B127: =IFERROR(IF(Lån_Ikke_Betalt*Værdier_Angivet,Betaling_Nummer,""), "") ->  | C127: =IFERROR(IF(Lån_Ikke_Betalt*Værdier_Angivet,Betalingsdato,""), "") ->  | D127: =IFERROR(IF(Lån_Ikke_Betalt*Værdier_Angivet,Startsaldo,""), "") ->  | E127: =IFERROR(IF(Lån_Ikke_Betalt*Værdier_Angivet,Månedlig_Betaling,""), "") ->  | F127: =IFERROR(IF(Lån_Ikke_Betalt*Værdier_Angivet,Hovedstol,""), "") ->  | G127: =IFERROR(IF(Lån_Ikke_Betalt*Værdier_Angivet,Renter,""), "") ->  | H127: =IFERROR(IF(Lån_Ikke_Betalt*Værdier_Angivet,Slut_saldo,""), "") -> 
B128: =IFERROR(IF(Lån_Ikke_Betalt*Værdier_Angivet,Betaling_Nummer,""), "") ->  | C128: =IFERROR(IF(Lån_Ikke_Betalt*Værdier_Angivet,Betalingsdato,""), "") ->  | D128: =IFERROR(IF(Lån_Ikke_Betalt*Værdier_Angivet,Startsaldo,""), "") ->  | E128: =IFERROR(IF(Lån_Ikke_Betalt*Værdier_Angivet,Månedlig_Betaling,""), "") ->  | F128: =IFERROR(IF(Lån_Ikke_Betalt*Værdier_Angivet,Hovedstol,""), "") ->  | G128: =IFERROR(IF(Lån_Ikke_Betalt*Værdier_Angivet,Renter,""), "") ->  | H128: =IFERROR(IF(Lån_Ikke_Betalt*Værdier_Angivet,Slut_saldo,""), "") -> 
B129: =IFERROR(IF(Lån_Ikke_Betalt*Værdier_Angivet,Betaling_Nummer,""), "") ->  | C129: =IFERROR(IF(Lån_Ikke_Betalt*Værdier_Angivet,Betalingsdato,""), "") ->  | D129: =IFERROR(IF(Lån_Ikke_Betalt*Værdier_Angivet,Startsaldo,""), "") ->  | E129: =IFERROR(IF(Lån_Ikke_Betalt*Værdier_Angivet,Månedlig_Betaling,""), "") ->  | F129: =IFERROR(IF(Lån_Ikke_Betalt*Værdier_Angivet,Hovedstol,""), "") ->  | G129: =IFERROR(IF(Lån_Ikke_Betalt*Værdier_Angivet,Renter,""), "") ->  | H129: =IFERROR(IF(Lån_Ikke_Betalt*Værdier_Angivet,Slut_saldo,""), "") -> 
B130: =IFERROR(IF(Lån_Ikke_Betalt*Værdier_Angivet,Betaling_Nummer,""), "") ->  | C130: =IFERROR(IF(Lån_Ikke_Betalt*Værdier_Angivet,Betalingsdato,""), "") ->  | D130: =IFERROR(IF(Lån_Ikke_Betalt*Værdier_Angivet,Startsaldo,""), "") ->  | E130: =IFERROR(IF(Lån_Ikke_Betalt*Værdier_Angivet,Månedlig_Betaling,""), "") ->  | F130: =IFERROR(IF(Lån_Ikke_Betalt*Værdier_Angivet,Hovedstol,""), "") ->  | G130: =IFERROR(IF(Lån_Ikke_Betalt*Værdier_Angivet,Renter,""), "") ->  | H130: =IFERROR(IF(Lån_Ikke_Betalt*Værdier_Angivet,Slut_saldo,""), "") -> 
B131: =IFERROR(IF(Lån_Ikke_Betalt*Værdier_Angivet,Betaling_Nummer,""), "") ->  | C131: =IFERROR(IF(Lån_Ikke_Betalt*Værdier_Angivet,Betalingsdato,""), "") ->  | D131: =IFERROR(IF(Lån_Ikke_Betalt*Værdier_Angivet,Startsaldo,""), "") ->  | E131: =IFERROR(IF(Lån_Ikke_Betalt*Værdier_Angivet,Månedlig_Betaling,""), "") ->  | F131: =IFERROR(IF(Lån_Ikke_Betalt*Værdier_Angivet,Hovedstol,""), "") ->  | G131: =IFERROR(IF(Lån_Ikke_Betalt*Værdier_Angivet,Renter,""), "") ->  | H131: =IFERROR(IF(Lån_Ikke_Betalt*Værdier_Angivet,Slut_saldo,""), "") -> 
B132: =IFERROR(IF(Lån_Ikke_Betalt*Værdier_Angivet,Betaling_Nummer,""), "") ->  | C132: =IFERROR(IF(Lån_Ikke_Betalt*Værdier_Angivet,Betalingsdato,""), "") ->  | D132: =IFERROR(IF(Lån_Ikke_Betalt*Værdier_Angivet,Startsaldo,""), "") ->  | E132: =IFERROR(IF(Lån_Ikke_Betalt*Værdier_Angivet,Månedlig_Betaling,""), "") ->  | F132: =IFERROR(IF(Lån_Ikke_Betalt*Værdier_Angivet,Hovedstol,""), "") ->  | G132: =IFERROR(IF(Lån_Ikke_Betalt*Værdier_Angivet,Renter,""), "") ->  | H132: =IFERROR(IF(Lån_Ikke_Betalt*Værdier_Angivet,Slut_saldo,""), "") -> 
B133: =IFERROR(IF(Lån_Ikke_Betalt*Værdier_Angivet,Betaling_Nummer,""), "") ->  | C133: =IFERROR(IF(Lån_Ikke_Betalt*Værdier_Angivet,Betalingsdato,""), "") ->  | D133: =IFERROR(IF(Lån_Ikke_Betalt*Værdier_Angivet,Startsaldo,""), "") ->  | E133: =IFERROR(IF(Lån_Ikke_Betalt*Værdier_Angivet,Månedlig_Betaling,""), "") ->  | F133: =IFERROR(IF(Lån_Ikke_Betalt*Værdier_Angivet,Hovedstol,""), "") ->  | G133: =IFERROR(IF(Lån_Ikke_Betalt*Værdier_Angivet,Renter,""), "") ->  | H133: =IFERROR(IF(Lån_Ikke_Betalt*Værdier_Angivet,Slut_saldo,""), "") -> 
B134: =IFERROR(IF(Lån_Ikke_Betalt*Værdier_Angivet,Betaling_Nummer,""), "") ->  | C134: =IFERROR(IF(Lån_Ikke_Betalt*Værdier_Angivet,Betalingsdato,""), "") ->  | D134: =IFERROR(IF(Lån_Ikke_Betalt*Værdier_Angivet,Startsaldo,""), "") ->  | E134: =IFERROR(IF(Lån_Ikke_Betalt*Værdier_Angivet,Månedlig_Betaling,""), "") ->  | F134: =IFERROR(IF(Lån_Ikke_Betalt*Værdier_Angivet,Hovedstol,""), "") ->  | G134: =IFERROR(IF(Lån_Ikke_Betalt*Værdier_Angivet,Renter,""), "") ->  | H134: =IFERROR(IF(Lån_Ikke_Betalt*Værdier_Angivet,Slut_saldo,""), "") -> 
B135: =IFERROR(IF(Lån_Ikke_Betalt*Værdier_Angivet,Betaling_Nummer,""), "") ->  | C135: =IFERROR(IF(Lån_Ikke_Betalt*Værdier_Angivet,Betalingsdato,""), "") ->  | D135: =IFERROR(IF(Lån_Ikke_Betalt*Værdier_Angivet,Startsaldo,""), "") ->  | E135: =IFERROR(IF(Lån_Ikke_Betalt*Værdier_Angivet,Månedlig_Betaling,""), "") ->  | F135: =IFERROR(IF(Lån_Ikke_Betalt*Værdier_Angivet,Hovedstol,""), "") ->  | G135: =IFERROR(IF(Lån_Ikke_Betalt*Værdier_Angivet,Renter,""), "") ->  | H135: =IFERROR(IF(Lån_Ikke_Betalt*Værdier_Angivet,Slut_saldo,""), "") -> 
B136: =IFERROR(IF(Lån_Ikke_Betalt*Værdier_Angivet,Betaling_Nummer,""), "") ->  | C136: =IFERROR(IF(Lån_Ikke_Betalt*Værdier_Angivet,Betalingsdato,""), "") ->  | D136: =IFERROR(IF(Lån_Ikke_Betalt*Værdier_Angivet,Startsaldo,""), "") ->  | E136: =IFERROR(IF(Lån_Ikke_Betalt*Værdier_Angivet,Månedlig_Betaling,""), "") ->  | F136: =IFERROR(IF(Lån_Ikke_Betalt*Værdier_Angivet,Hovedstol,""), "") ->  | G136: =IFERROR(IF(Lån_Ikke_Betalt*Værdier_Angivet,Renter,""), "") ->  | H136: =IFERROR(IF(Lån_Ikke_Betalt*Værdier_Angivet,Slut_saldo,""), "") -> 
B137: =IFERROR(IF(Lån_Ikke_Betalt*Værdier_Angivet,Betaling_Nummer,""), "") ->  | C137: =IFERROR(IF(Lån_Ikke_Betalt*Værdier_Angivet,Betalingsdato,""), "") ->  | D137: =IFERROR(IF(Lån_Ikke_Betalt*Værdier_Angivet,Startsaldo,""), "") ->  | E137: =IFERROR(IF(Lån_Ikke_Betalt*Værdier_Angivet,Månedlig_Betaling,""), "") ->  | F137: =IFERROR(IF(Lån_Ikke_Betalt*Værdier_Angivet,Hovedstol,""), "") ->  | G137: =IFERROR(IF(Lån_Ikke_Betalt*Værdier_Angivet,Renter,""), "") ->  | H137: =IFERROR(IF(Lån_Ikke_Betalt*Værdier_Angivet,Slut_saldo,""), "") -> 
B138: =IFERROR(IF(Lån_Ikke_Betalt*Værdier_Angivet,Betaling_Nummer,""), "") ->  | C138: =IFERROR(IF(Lån_Ikke_Betalt*Værdier_Angivet,Betalingsdato,""), "") ->  | D138: =IFERROR(IF(Lån_Ikke_Betalt*Værdier_Angivet,Startsaldo,""), "") ->  | E138: =IFERROR(IF(Lån_Ikke_Betalt*Værdier_Angivet,Månedlig_Betaling,""), "") ->  | F138: =IFERROR(IF(Lån_Ikke_Betalt*Værdier_Angivet,Hovedstol,""), "") ->  | G138: =IFERROR(IF(Lån_Ikke_Betalt*Værdier_Angivet,Renter,""), "") ->  | H138: =IFERROR(IF(Lån_Ikke_Betalt*Værdier_Angivet,Slut_saldo,""), "") -> 
B139: =IFERROR(IF(Lån_Ikke_Betalt*Værdier_Angivet,Betaling_Nummer,""), "") ->  | C139: =IFERROR(IF(Lån_Ikke_Betalt*Værdier_Angivet,Betalingsdato,""), "") ->  | D139: =IFERROR(IF(Lån_Ikke_Betalt*Værdier_Angivet,Startsaldo,""), "") ->  | E139: =IFERROR(IF(Lån_Ikke_Betalt*Værdier_Angivet,Månedlig_Betaling,""), "") ->  | F139: =IFERROR(IF(Lån_Ikke_Betalt*Værdier_Angivet,Hovedstol,""), "") ->  | G139: =IFERROR(IF(Lån_Ikke_Betalt*Værdier_Angivet,Renter,""), "") ->  | H139: =IFERROR(IF(Lån_Ikke_Betalt*Værdier_Angivet,Slut_saldo,""), "") -> 
B140: =IFERROR(IF(Lån_Ikke_Betalt*Værdier_Angivet,Betaling_Nummer,""), "") ->  | C140: =IFERROR(IF(Lån_Ikke_Betalt*Værdier_Angivet,Betalingsdato,""), "") ->  | D140: =IFERROR(IF(Lån_Ikke_Betalt*Værdier_Angivet,Startsaldo,""), "") ->  | E140: =IFERROR(IF(Lån_Ikke_Betalt*Værdier_Angivet,Månedlig_Betaling,""), "") ->  | F140: =IFERROR(IF(Lån_Ikke_Betalt*Værdier_Angivet,Hovedstol,""), "") ->  | G140: =IFERROR(IF(Lån_Ikke_Betalt*Værdier_Angivet,Renter,""), "") ->  | H140: =IFERROR(IF(Lån_Ikke_Betalt*Værdier_Angivet,Slut_saldo,""), "") -> 
B141: =IFERROR(IF(Lån_Ikke_Betalt*Værdier_Angivet,Betaling_Nummer,""), "") ->  | C141: =IFERROR(IF(Lån_Ikke_Betalt*Værdier_Angivet,Betalingsdato,""), "") ->  | D141: =IFERROR(IF(Lån_Ikke_Betalt*Værdier_Angivet,Startsaldo,""), "") ->  | E141: =IFERROR(IF(Lån_Ikke_Betalt*Værdier_Angivet,Månedlig_Betaling,""), "") ->  | F141: =IFERROR(IF(Lån_Ikke_Betalt*Værdier_Angivet,Hovedstol,""), "") ->  | G141: =IFERROR(IF(Lån_Ikke_Betalt*Værdier_Angivet,Renter,""), "") ->  | H141: =IFERROR(IF(Lån_Ikke_Betalt*Værdier_Angivet,Slut_saldo,""), "") -> 
B142: =IFERROR(IF(Lån_Ikke_Betalt*Værdier_Angivet,Betaling_Nummer,""), "") ->  | C142: =IFERROR(IF(Lån_Ikke_Betalt*Værdier_Angivet,Betalingsdato,""), "") ->  | D142: =IFERROR(IF(Lån_Ikke_Betalt*Værdier_Angivet,Startsaldo,""), "") ->  | E142: =IFERROR(IF(Lån_Ikke_Betalt*Værdier_Angivet,Månedlig_Betaling,""), "") ->  | F142: =IFERROR(IF(Lån_Ikke_Betalt*Værdier_Angivet,Hovedstol,""), "") ->  | G142: =IFERROR(IF(Lån_Ikke_Betalt*Værdier_Angivet,Renter,""), "") ->  | H142: =IFERROR(IF(Lån_Ikke_Betalt*Værdier_Angivet,Slut_saldo,""), "") -> 
B143: =IFERROR(IF(Lån_Ikke_Betalt*Værdier_Angivet,Betaling_Nummer,""), "") ->  | C143: =IFERROR(IF(Lån_Ikke_Betalt*Værdier_Angivet,Betalingsdato,""), "") ->  | D143: =IFERROR(IF(Lån_Ikke_Betalt*Værdier_Angivet,Startsaldo,""), "") ->  | E143: =IFERROR(IF(Lån_Ikke_Betalt*Værdier_Angivet,Månedlig_Betaling,""), "") ->  | F143: =IFERROR(IF(Lån_Ikke_Betalt*Værdier_Angivet,Hovedstol,""), "") ->  | G143: =IFERROR(IF(Lån_Ikke_Betalt*Værdier_Angivet,Renter,""), "") ->  | H143: =IFERROR(IF(Lån_Ikke_Betalt*Værdier_Angivet,Slut_saldo,""), "") -> 
B144: =IFERROR(IF(Lån_Ikke_Betalt*Værdier_Angivet,Betaling_Nummer,""), "") ->  | C144: =IFERROR(IF(Lån_Ikke_Betalt*Værdier_Angivet,Betalingsdato,""), "") ->  | D144: =IFERROR(IF(Lån_Ikke_Betalt*Værdier_Angivet,Startsaldo,""), "") ->  | E144: =IFERROR(IF(Lån_Ikke_Betalt*Værdier_Angivet,Månedlig_Betaling,""), "") ->  | F144: =IFERROR(IF(Lån_Ikke_Betalt*Værdier_Angivet,Hovedstol,""), "") ->  | G144: =IFERROR(IF(Lån_Ikke_Betalt*Værdier_Angivet,Renter,""), "") ->  | H144: =IFERROR(IF(Lån_Ikke_Betalt*Værdier_Angivet,Slut_saldo,""), "") -> 
B145: =IFERROR(IF(Lån_Ikke_Betalt*Værdier_Angivet,Betaling_Nummer,""), "") ->  | C145: =IFERROR(IF(Lån_Ikke_Betalt*Værdier_Angivet,Betalingsdato,""), "") ->  | D145: =IFERROR(IF(Lån_Ikke_Betalt*Værdier_Angivet,Startsaldo,""), "") ->  | E145: =IFERROR(IF(Lån_Ikke_Betalt*Værdier_Angivet,Månedlig_Betaling,""), "") ->  | F145: =IFERROR(IF(Lån_Ikke_Betalt*Værdier_Angivet,Hovedstol,""), "") ->  | G145: =IFERROR(IF(Lån_Ikke_Betalt*Værdier_Angivet,Renter,""), "") ->  | H145: =IFERROR(IF(Lån_Ikke_Betalt*Værdier_Angivet,Slut_saldo,""), "") -> 
B146: =IFERROR(IF(Lån_Ikke_Betalt*Værdier_Angivet,Betaling_Nummer,""), "") ->  | C146: =IFERROR(IF(Lån_Ikke_Betalt*Værdier_Angivet,Betalingsdato,""), "") ->  | D146: =IFERROR(IF(Lån_Ikke_Betalt*Værdier_Angivet,Startsaldo,""), "") ->  | E146: =IFERROR(IF(Lån_Ikke_Betalt*Værdier_Angivet,Månedlig_Betaling,""), "") ->  | F146: =IFERROR(IF(Lån_Ikke_Betalt*Værdier_Angivet,Hovedstol,""), "") ->  | G146: =IFERROR(IF(Lån_Ikke_Betalt*Værdier_Angivet,Renter,""), "") ->  | H146: =IFERROR(IF(Lån_Ikke_Betalt*Værdier_Angivet,Slut_saldo,""), "") -> 
B147: =IFERROR(IF(Lån_Ikke_Betalt*Værdier_Angivet,Betaling_Nummer,""), "") ->  | C147: =IFERROR(IF(Lån_Ikke_Betalt*Værdier_Angivet,Betalingsdato,""), "") ->  | D147: =IFERROR(IF(Lån_Ikke_Betalt*Værdier_Angivet,Startsaldo,""), "") ->  | E147: =IFERROR(IF(Lån_Ikke_Betalt*Værdier_Angivet,Månedlig_Betaling,""), "") ->  | F147: =IFERROR(IF(Lån_Ikke_Betalt*Værdier_Angivet,Hovedstol,""), "") ->  | G147: =IFERROR(IF(Lån_Ikke_Betalt*Værdier_Angivet,Renter,""), "") ->  | H147: =IFERROR(IF(Lån_Ikke_Betalt*Værdier_Angivet,Slut_saldo,""), "") -> 
B148: =IFERROR(IF(Lån_Ikke_Betalt*Værdier_Angivet,Betaling_Nummer,""), "") ->  | C148: =IFERROR(IF(Lån_Ikke_Betalt*Værdier_Angivet,Betalingsdato,""), "") ->  | D148: =IFERROR(IF(Lån_Ikke_Betalt*Værdier_Angivet,Startsaldo,""), "") ->  | E148: =IFERROR(IF(Lån_Ikke_Betalt*Værdier_Angivet,Månedlig_Betaling,""), "") ->  | F148: =IFERROR(IF(Lån_Ikke_Betalt*Værdier_Angivet,Hovedstol,""), "") ->  | G148: =IFERROR(IF(Lån_Ikke_Betalt*Værdier_Angivet,Renter,""), "") ->  | H148: =IFERROR(IF(Lån_Ikke_Betalt*Værdier_Angivet,Slut_saldo,""), "") -> 
B149: =IFERROR(IF(Lån_Ikke_Betalt*Værdier_Angivet,Betaling_Nummer,""), "") ->  | C149: =IFERROR(IF(Lån_Ikke_Betalt*Værdier_Angivet,Betalingsdato,""), "") ->  | D149: =IFERROR(IF(Lån_Ikke_Betalt*Værdier_Angivet,Startsaldo,""), "") ->  | E149: =IFERROR(IF(Lån_Ikke_Betalt*Værdier_Angivet,Månedlig_Betaling,""), "") ->  | F149: =IFERROR(IF(Lån_Ikke_Betalt*Værdier_Angivet,Hovedstol,""), "") ->  | G149: =IFERROR(IF(Lån_Ikke_Betalt*Værdier_Angivet,Renter,""), "") ->  | H149: =IFERROR(IF(Lån_Ikke_Betalt*Værdier_Angivet,Slut_saldo,""), "") -> 
B150: =IFERROR(IF(Lån_Ikke_Betalt*Værdier_Angivet,Betaling_Nummer,""), "") ->  | C150: =IFERROR(IF(Lån_Ikke_Betalt*Værdier_Angivet,Betalingsdato,""), "") ->  | D150: =IFERROR(IF(Lån_Ikke_Betalt*Værdier_Angivet,Startsaldo,""), "") ->  | E150: =IFERROR(IF(Lån_Ikke_Betalt*Værdier_Angivet,Månedlig_Betaling,""), "") ->  | F150: =IFERROR(IF(Lån_Ikke_Betalt*Værdier_Angivet,Hovedstol,""), "") ->  | G150: =IFERROR(IF(Lån_Ikke_Betalt*Værdier_Angivet,Renter,""), "") ->  | H150: =IFERROR(IF(Lån_Ikke_Betalt*Værdier_Angivet,Slut_saldo,""), "") -> 
B151: =IFERROR(IF(Lån_Ikke_Betalt*Værdier_Angivet,Betaling_Nummer,""), "") ->  | C151: =IFERROR(IF(Lån_Ikke_Betalt*Værdier_Angivet,Betalingsdato,""), "") ->  | D151: =IFERROR(IF(Lån_Ikke_Betalt*Værdier_Angivet,Startsaldo,""), "") ->  | E151: =IFERROR(IF(Lån_Ikke_Betalt*Værdier_Angivet,Månedlig_Betaling,""), "") ->  | F151: =IFERROR(IF(Lån_Ikke_Betalt*Værdier_Angivet,Hovedstol,""), "") ->  | G151: =IFERROR(IF(Lån_Ikke_Betalt*Værdier_Angivet,Renter,""), "") ->  | H151: =IFERROR(IF(Lån_Ikke_Betalt*Værdier_Angivet,Slut_saldo,""), "") -> 
B152: =IFERROR(IF(Lån_Ikke_Betalt*Værdier_Angivet,Betaling_Nummer,""), "") ->  | C152: =IFERROR(IF(Lån_Ikke_Betalt*Værdier_Angivet,Betalingsdato,""), "") ->  | D152: =IFERROR(IF(Lån_Ikke_Betalt*Værdier_Angivet,Startsaldo,""), "") ->  | E152: =IFERROR(IF(Lån_Ikke_Betalt*Værdier_Angivet,Månedlig_Betaling,""), "") ->  | F152: =IFERROR(IF(Lån_Ikke_Betalt*Værdier_Angivet,Hovedstol,""), "") ->  | G152: =IFERROR(IF(Lån_Ikke_Betalt*Værdier_Angivet,Renter,""), "") ->  | H152: =IFERROR(IF(Lån_Ikke_Betalt*Værdier_Angivet,Slut_saldo,""), "") -> 
B153: =IFERROR(IF(Lån_Ikke_Betalt*Værdier_Angivet,Betaling_Nummer,""), "") ->  | C153: =IFERROR(IF(Lån_Ikke_Betalt*Værdier_Angivet,Betalingsdato,""), "") ->  | D153: =IFERROR(IF(Lån_Ikke_Betalt*Værdier_Angivet,Startsaldo,""), "") ->  | E153: =IFERROR(IF(Lån_Ikke_Betalt*Værdier_Angivet,Månedlig_Betaling,""), "") ->  | F153: =IFERROR(IF(Lån_Ikke_Betalt*Værdier_Angivet,Hovedstol,""), "") ->  | G153: =IFERROR(IF(Lån_Ikke_Betalt*Værdier_Angivet,Renter,""), "") ->  | H153: =IFERROR(IF(Lån_Ikke_Betalt*Værdier_Angivet,Slut_saldo,""), "") -> 
B154: =IFERROR(IF(Lån_Ikke_Betalt*Værdier_Angivet,Betaling_Nummer,""), "") ->  | C154: =IFERROR(IF(Lån_Ikke_Betalt*Værdier_Angivet,Betalingsdato,""), "") ->  | D154: =IFERROR(IF(Lån_Ikke_Betalt*Værdier_Angivet,Startsaldo,""), "") ->  | E154: =IFERROR(IF(Lån_Ikke_Betalt*Værdier_Angivet,Månedlig_Betaling,""), "") ->  | F154: =IFERROR(IF(Lån_Ikke_Betalt*Værdier_Angivet,Hovedstol,""), "") ->  | G154: =IFERROR(IF(Lån_Ikke_Betalt*Værdier_Angivet,Renter,""), "") ->  | H154: =IFERROR(IF(Lån_Ikke_Betalt*Værdier_Angivet,Slut_saldo,""), "") -> 
B155: =IFERROR(IF(Lån_Ikke_Betalt*Værdier_Angivet,Betaling_Nummer,""), "") ->  | C155: =IFERROR(IF(Lån_Ikke_Betalt*Værdier_Angivet,Betalingsdato,""), "") ->  | D155: =IFERROR(IF(Lån_Ikke_Betalt*Værdier_Angivet,Startsaldo,""), "") ->  | E155: =IFERROR(IF(Lån_Ikke_Betalt*Værdier_Angivet,Månedlig_Betaling,""), "") ->  | F155: =IFERROR(IF(Lån_Ikke_Betalt*Værdier_Angivet,Hovedstol,""), "") ->  | G155: =IFERROR(IF(Lån_Ikke_Betalt*Værdier_Angivet,Renter,""), "") ->  | H155: =IFERROR(IF(Lån_Ikke_Betalt*Værdier_Angivet,Slut_saldo,""), "") -> 
B156: =IFERROR(IF(Lån_Ikke_Betalt*Værdier_Angivet,Betaling_Nummer,""), "") ->  | C156: =IFERROR(IF(Lån_Ikke_Betalt*Værdier_Angivet,Betalingsdato,""), "") ->  | D156: =IFERROR(IF(Lån_Ikke_Betalt*Værdier_Angivet,Startsaldo,""), "") ->  | E156: =IFERROR(IF(Lån_Ikke_Betalt*Værdier_Angivet,Månedlig_Betaling,""), "") ->  | F156: =IFERROR(IF(Lån_Ikke_Betalt*Værdier_Angivet,Hovedstol,""), "") ->  | G156: =IFERROR(IF(Lån_Ikke_Betalt*Værdier_Angivet,Renter,""), "") ->  | H156: =IFERROR(IF(Lån_Ikke_Betalt*Værdier_Angivet,Slut_saldo,""), "") -> 
B157: =IFERROR(IF(Lån_Ikke_Betalt*Værdier_Angivet,Betaling_Nummer,""), "") ->  | C157: =IFERROR(IF(Lån_Ikke_Betalt*Værdier_Angivet,Betalingsdato,""), "") ->  | D157: =IFERROR(IF(Lån_Ikke_Betalt*Værdier_Angivet,Startsaldo,""), "") ->  | E157: =IFERROR(IF(Lån_Ikke_Betalt*Værdier_Angivet,Månedlig_Betaling,""), "") ->  | F157: =IFERROR(IF(Lån_Ikke_Betalt*Værdier_Angivet,Hovedstol,""), "") ->  | G157: =IFERROR(IF(Lån_Ikke_Betalt*Værdier_Angivet,Renter,""), "") ->  | H157: =IFERROR(IF(Lån_Ikke_Betalt*Værdier_Angivet,Slut_saldo,""), "") -> 
B158: =IFERROR(IF(Lån_Ikke_Betalt*Værdier_Angivet,Betaling_Nummer,""), "") ->  | C158: =IFERROR(IF(Lån_Ikke_Betalt*Værdier_Angivet,Betalingsdato,""), "") ->  | D158: =IFERROR(IF(Lån_Ikke_Betalt*Værdier_Angivet,Startsaldo,""), "") ->  | E158: =IFERROR(IF(Lån_Ikke_Betalt*Værdier_Angivet,Månedlig_Betaling,""), "") ->  | F158: =IFERROR(IF(Lån_Ikke_Betalt*Værdier_Angivet,Hovedstol,""), "") ->  | G158: =IFERROR(IF(Lån_Ikke_Betalt*Værdier_Angivet,Renter,""), "") ->  | H158: =IFERROR(IF(Lån_Ikke_Betalt*Værdier_Angivet,Slut_saldo,""), "") -> 
B159: =IFERROR(IF(Lån_Ikke_Betalt*Værdier_Angivet,Betaling_Nummer,""), "") ->  | C159: =IFERROR(IF(Lån_Ikke_Betalt*Værdier_Angivet,Betalingsdato,""), "") ->  | D159: =IFERROR(IF(Lån_Ikke_Betalt*Værdier_Angivet,Startsaldo,""), "") ->  | E159: =IFERROR(IF(Lån_Ikke_Betalt*Værdier_Angivet,Månedlig_Betaling,""), "") ->  | F159: =IFERROR(IF(Lån_Ikke_Betalt*Værdier_Angivet,Hovedstol,""), "") ->  | G159: =IFERROR(IF(Lån_Ikke_Betalt*Værdier_Angivet,Renter,""), "") ->  | H159: =IFERROR(IF(Lån_Ikke_Betalt*Værdier_Angivet,Slut_saldo,""), "") -> 
B160: =IFERROR(IF(Lån_Ikke_Betalt*Værdier_Angivet,Betaling_Nummer,""), "") ->  | C160: =IFERROR(IF(Lån_Ikke_Betalt*Værdier_Angivet,Betalingsdato,""), "") ->  | D160: =IFERROR(IF(Lån_Ikke_Betalt*Værdier_Angivet,Startsaldo,""), "") ->  | E160: =IFERROR(IF(Lån_Ikke_Betalt*Værdier_Angivet,Månedlig_Betaling,""), "") ->  | F160: =IFERROR(IF(Lån_Ikke_Betalt*Værdier_Angivet,Hovedstol,""), "") ->  | G160: =IFERROR(IF(Lån_Ikke_Betalt*Værdier_Angivet,Renter,""), "") ->  | H160: =IFERROR(IF(Lån_Ikke_Betalt*Værdier_Angivet,Slut_saldo,""), "") -> 
B161: =IFERROR(IF(Lån_Ikke_Betalt*Værdier_Angivet,Betaling_Nummer,""), "") ->  | C161: =IFERROR(IF(Lån_Ikke_Betalt*Værdier_Angivet,Betalingsdato,""), "") ->  | D161: =IFERROR(IF(Lån_Ikke_Betalt*Værdier_Angivet,Startsaldo,""), "") ->  | E161: =IFERROR(IF(Lån_Ikke_Betalt*Værdier_Angivet,Månedlig_Betaling,""), "") ->  | F161: =IFERROR(IF(Lån_Ikke_Betalt*Værdier_Angivet,Hovedstol,""), "") ->  | G161: =IFERROR(IF(Lån_Ikke_Betalt*Værdier_Angivet,Renter,""), "") ->  | H161: =IFERROR(IF(Lån_Ikke_Betalt*Værdier_Angivet,Slut_saldo,""), "") -> 
B162: =IFERROR(IF(Lån_Ikke_Betalt*Værdier_Angivet,Betaling_Nummer,""), "") ->  | C162: =IFERROR(IF(Lån_Ikke_Betalt*Værdier_Angivet,Betalingsdato,""), "") ->  | D162: =IFERROR(IF(Lån_Ikke_Betalt*Værdier_Angivet,Startsaldo,""), "") ->  | E162: =IFERROR(IF(Lån_Ikke_Betalt*Værdier_Angivet,Månedlig_Betaling,""), "") ->  | F162: =IFERROR(IF(Lån_Ikke_Betalt*Værdier_Angivet,Hovedstol,""), "") ->  | G162: =IFERROR(IF(Lån_Ikke_Betalt*Værdier_Angivet,Renter,""), "") ->  | H162: =IFERROR(IF(Lån_Ikke_Betalt*Værdier_Angivet,Slut_saldo,""), "") -> 
B163: =IFERROR(IF(Lån_Ikke_Betalt*Værdier_Angivet,Betaling_Nummer,""), "") ->  | C163: =IFERROR(IF(Lån_Ikke_Betalt*Værdier_Angivet,Betalingsdato,""), "") ->  | D163: =IFERROR(IF(Lån_Ikke_Betalt*Værdier_Angivet,Startsaldo,""), "") ->  | E163: =IFERROR(IF(Lån_Ikke_Betalt*Værdier_Angivet,Månedlig_Betaling,""), "") ->  | F163: =IFERROR(IF(Lån_Ikke_Betalt*Værdier_Angivet,Hovedstol,""), "") ->  | G163: =IFERROR(IF(Lån_Ikke_Betalt*Værdier_Angivet,Renter,""), "") ->  | H163: =IFERROR(IF(Lån_Ikke_Betalt*Værdier_Angivet,Slut_saldo,""), "") -> 
B164: =IFERROR(IF(Lån_Ikke_Betalt*Værdier_Angivet,Betaling_Nummer,""), "") ->  | C164: =IFERROR(IF(Lån_Ikke_Betalt*Værdier_Angivet,Betalingsdato,""), "") ->  | D164: =IFERROR(IF(Lån_Ikke_Betalt*Værdier_Angivet,Startsaldo,""), "") ->  | E164: =IFERROR(IF(Lån_Ikke_Betalt*Værdier_Angivet,Månedlig_Betaling,""), "") ->  | F164: =IFERROR(IF(Lån_Ikke_Betalt*Værdier_Angivet,Hovedstol,""), "") ->  | G164: =IFERROR(IF(Lån_Ikke_Betalt*Værdier_Angivet,Renter,""), "") ->  | H164: =IFERROR(IF(Lån_Ikke_Betalt*Værdier_Angivet,Slut_saldo,""), "") -> 
B165: =IFERROR(IF(Lån_Ikke_Betalt*Værdier_Angivet,Betaling_Nummer,""), "") ->  | C165: =IFERROR(IF(Lån_Ikke_Betalt*Værdier_Angivet,Betalingsdato,""), "") ->  | D165: =IFERROR(IF(Lån_Ikke_Betalt*Værdier_Angivet,Startsaldo,""), "") ->  | E165: =IFERROR(IF(Lån_Ikke_Betalt*Værdier_Angivet,Månedlig_Betaling,""), "") ->  | F165: =IFERROR(IF(Lån_Ikke_Betalt*Værdier_Angivet,Hovedstol,""), "") ->  | G165: =IFERROR(IF(Lån_Ikke_Betalt*Værdier_Angivet,Renter,""), "") ->  | H165: =IFERROR(IF(Lån_Ikke_Betalt*Værdier_Angivet,Slut_saldo,""), "") -> 
B166: =IFERROR(IF(Lån_Ikke_Betalt*Værdier_Angivet,Betaling_Nummer,""), "") ->  | C166: =IFERROR(IF(Lån_Ikke_Betalt*Værdier_Angivet,Betalingsdato,""), "") ->  | D166: =IFERROR(IF(Lån_Ikke_Betalt*Værdier_Angivet,Startsaldo,""), "") ->  | E166: =IFERROR(IF(Lån_Ikke_Betalt*Værdier_Angivet,Månedlig_Betaling,""), "") ->  | F166: =IFERROR(IF(Lån_Ikke_Betalt*Værdier_Angivet,Hovedstol,""), "") ->  | G166: =IFERROR(IF(Lån_Ikke_Betalt*Værdier_Angivet,Renter,""), "") ->  | H166: =IFERROR(IF(Lån_Ikke_Betalt*Værdier_Angivet,Slut_saldo,""), "") -> 
B167: =IFERROR(IF(Lån_Ikke_Betalt*Værdier_Angivet,Betaling_Nummer,""), "") ->  | C167: =IFERROR(IF(Lån_Ikke_Betalt*Værdier_Angivet,Betalingsdato,""), "") ->  | D167: =IFERROR(IF(Lån_Ikke_Betalt*Værdier_Angivet,Startsaldo,""), "") ->  | E167: =IFERROR(IF(Lån_Ikke_Betalt*Værdier_Angivet,Månedlig_Betaling,""), "") ->  | F167: =IFERROR(IF(Lån_Ikke_Betalt*Værdier_Angivet,Hovedstol,""), "") ->  | G167: =IFERROR(IF(Lån_Ikke_Betalt*Værdier_Angivet,Renter,""), "") ->  | H167: =IFERROR(IF(Lån_Ikke_Betalt*Værdier_Angivet,Slut_saldo,""), "") -> 
B168: =IFERROR(IF(Lån_Ikke_Betalt*Værdier_Angivet,Betaling_Nummer,""), "") ->  | C168: =IFERROR(IF(Lån_Ikke_Betalt*Værdier_Angivet,Betalingsdato,""), "") ->  | D168: =IFERROR(IF(Lån_Ikke_Betalt*Værdier_Angivet,Startsaldo,""), "") ->  | E168: =IFERROR(IF(Lån_Ikke_Betalt*Værdier_Angivet,Månedlig_Betaling,""), "") ->  | F168: =IFERROR(IF(Lån_Ikke_Betalt*Værdier_Angivet,Hovedstol,""), "") ->  | G168: =IFERROR(IF(Lån_Ikke_Betalt*Værdier_Angivet,Renter,""), "") ->  | H168: =IFERROR(IF(Lån_Ikke_Betalt*Værdier_Angivet,Slut_saldo,""), "") -> 
B169: =IFERROR(IF(Lån_Ikke_Betalt*Værdier_Angivet,Betaling_Nummer,""), "") ->  | C169: =IFERROR(IF(Lån_Ikke_Betalt*Værdier_Angivet,Betalingsdato,""), "") ->  | D169: =IFERROR(IF(Lån_Ikke_Betalt*Værdier_Angivet,Startsaldo,""), "") ->  | E169: =IFERROR(IF(Lån_Ikke_Betalt*Værdier_Angivet,Månedlig_Betaling,""), "") ->  | F169: =IFERROR(IF(Lån_Ikke_Betalt*Værdier_Angivet,Hovedstol,""), "") ->  | G169: =IFERROR(IF(Lån_Ikke_Betalt*Værdier_Angivet,Renter,""), "") ->  | H169: =IFERROR(IF(Lån_Ikke_Betalt*Værdier_Angivet,Slut_saldo,""), "") -> 
B170: =IFERROR(IF(Lån_Ikke_Betalt*Værdier_Angivet,Betaling_Nummer,""), "") ->  | C170: =IFERROR(IF(Lån_Ikke_Betalt*Værdier_Angivet,Betalingsdato,""), "") ->  | D170: =IFERROR(IF(Lån_Ikke_Betalt*Værdier_Angivet,Startsaldo,""), "") ->  | E170: =IFERROR(IF(Lån_Ikke_Betalt*Værdier_Angivet,Månedlig_Betaling,""), "") ->  | F170: =IFERROR(IF(Lån_Ikke_Betalt*Værdier_Angivet,Hovedstol,""), "") ->  | G170: =IFERROR(IF(Lån_Ikke_Betalt*Værdier_Angivet,Renter,""), "") ->  | H170: =IFERROR(IF(Lån_Ikke_Betalt*Værdier_Angivet,Slut_saldo,""), "") -> 
B171: =IFERROR(IF(Lån_Ikke_Betalt*Værdier_Angivet,Betaling_Nummer,""), "") ->  | C171: =IFERROR(IF(Lån_Ikke_Betalt*Værdier_Angivet,Betalingsdato,""), "") ->  | D171: =IFERROR(IF(Lån_Ikke_Betalt*Værdier_Angivet,Startsaldo,""), "") ->  | E171: =IFERROR(IF(Lån_Ikke_Betalt*Værdier_Angivet,Månedlig_Betaling,""), "") ->  | F171: =IFERROR(IF(Lån_Ikke_Betalt*Værdier_Angivet,Hovedstol,""), "") ->  | G171: =IFERROR(IF(Lån_Ikke_Betalt*Værdier_Angivet,Renter,""), "") ->  | H171: =IFERROR(IF(Lån_Ikke_Betalt*Værdier_Angivet,Slut_saldo,""), "") -> 
B172: =IFERROR(IF(Lån_Ikke_Betalt*Værdier_Angivet,Betaling_Nummer,""), "") ->  | C172: =IFERROR(IF(Lån_Ikke_Betalt*Værdier_Angivet,Betalingsdato,""), "") ->  | D172: =IFERROR(IF(Lån_Ikke_Betalt*Værdier_Angivet,Startsaldo,""), "") ->  | E172: =IFERROR(IF(Lån_Ikke_Betalt*Værdier_Angivet,Månedlig_Betaling,""), "") ->  | F172: =IFERROR(IF(Lån_Ikke_Betalt*Værdier_Angivet,Hovedstol,""), "") ->  | G172: =IFERROR(IF(Lån_Ikke_Betalt*Værdier_Angivet,Renter,""), "") ->  | H172: =IFERROR(IF(Lån_Ikke_Betalt*Værdier_Angivet,Slut_saldo,""), "") -> 
B173: =IFERROR(IF(Lån_Ikke_Betalt*Værdier_Angivet,Betaling_Nummer,""), "") ->  | C173: =IFERROR(IF(Lån_Ikke_Betalt*Værdier_Angivet,Betalingsdato,""), "") ->  | D173: =IFERROR(IF(Lån_Ikke_Betalt*Værdier_Angivet,Startsaldo,""), "") ->  | E173: =IFERROR(IF(Lån_Ikke_Betalt*Værdier_Angivet,Månedlig_Betaling,""), "") ->  | F173: =IFERROR(IF(Lån_Ikke_Betalt*Værdier_Angivet,Hovedstol,""), "") ->  | G173: =IFERROR(IF(Lån_Ikke_Betalt*Værdier_Angivet,Renter,""), "") ->  | H173: =IFERROR(IF(Lån_Ikke_Betalt*Værdier_Angivet,Slut_saldo,""), "") -> 
B174: =IFERROR(IF(Lån_Ikke_Betalt*Værdier_Angivet,Betaling_Nummer,""), "") ->  | C174: =IFERROR(IF(Lån_Ikke_Betalt*Værdier_Angivet,Betalingsdato,""), "") ->  | D174: =IFERROR(IF(Lån_Ikke_Betalt*Værdier_Angivet,Startsaldo,""), "") ->  | E174: =IFERROR(IF(Lån_Ikke_Betalt*Værdier_Angivet,Månedlig_Betaling,""), "") ->  | F174: =IFERROR(IF(Lån_Ikke_Betalt*Værdier_Angivet,Hovedstol,""), "") ->  | G174: =IFERROR(IF(Lån_Ikke_Betalt*Værdier_Angivet,Renter,""), "") ->  | H174: =IFERROR(IF(Lån_Ikke_Betalt*Værdier_Angivet,Slut_saldo,""), "") -> 
B175: =IFERROR(IF(Lån_Ikke_Betalt*Værdier_Angivet,Betaling_Nummer,""), "") ->  | C175: =IFERROR(IF(Lån_Ikke_Betalt*Værdier_Angivet,Betalingsdato,""), "") ->  | D175: =IFERROR(IF(Lån_Ikke_Betalt*Værdier_Angivet,Startsaldo,""), "") ->  | E175: =IFERROR(IF(Lån_Ikke_Betalt*Værdier_Angivet,Månedlig_Betaling,""), "") ->  | F175: =IFERROR(IF(Lån_Ikke_Betalt*Værdier_Angivet,Hovedstol,""), "") ->  | G175: =IFERROR(IF(Lån_Ikke_Betalt*Værdier_Angivet,Renter,""), "") ->  | H175: =IFERROR(IF(Lån_Ikke_Betalt*Værdier_Angivet,Slut_saldo,""), "") -> 
B176: =IFERROR(IF(Lån_Ikke_Betalt*Værdier_Angivet,Betaling_Nummer,""), "") ->  | C176: =IFERROR(IF(Lån_Ikke_Betalt*Værdier_Angivet,Betalingsdato,""), "") ->  | D176: =IFERROR(IF(Lån_Ikke_Betalt*Værdier_Angivet,Startsaldo,""), "") ->  | E176: =IFERROR(IF(Lån_Ikke_Betalt*Værdier_Angivet,Månedlig_Betaling,""), "") ->  | F176: =IFERROR(IF(Lån_Ikke_Betalt*Værdier_Angivet,Hovedstol,""), "") ->  | G176: =IFERROR(IF(Lån_Ikke_Betalt*Værdier_Angivet,Renter,""), "") ->  | H176: =IFERROR(IF(Lån_Ikke_Betalt*Værdier_Angivet,Slut_saldo,""), "") -> 
B177: =IFERROR(IF(Lån_Ikke_Betalt*Værdier_Angivet,Betaling_Nummer,""), "") ->  | C177: =IFERROR(IF(Lån_Ikke_Betalt*Værdier_Angivet,Betalingsdato,""), "") ->  | D177: =IFERROR(IF(Lån_Ikke_Betalt*Værdier_Angivet,Startsaldo,""), "") ->  | E177: =IFERROR(IF(Lån_Ikke_Betalt*Værdier_Angivet,Månedlig_Betaling,""), "") ->  | F177: =IFERROR(IF(Lån_Ikke_Betalt*Værdier_Angivet,Hovedstol,""), "") ->  | G177: =IFERROR(IF(Lån_Ikke_Betalt*Værdier_Angivet,Renter,""), "") ->  | H177: =IFERROR(IF(Lån_Ikke_Betalt*Værdier_Angivet,Slut_saldo,""), "") -> 
B178: =IFERROR(IF(Lån_Ikke_Betalt*Værdier_Angivet,Betaling_Nummer,""), "") ->  | C178: =IFERROR(IF(Lån_Ikke_Betalt*Værdier_Angivet,Betalingsdato,""), "") ->  | D178: =IFERROR(IF(Lån_Ikke_Betalt*Værdier_Angivet,Startsaldo,""), "") ->  | E178: =IFERROR(IF(Lån_Ikke_Betalt*Værdier_Angivet,Månedlig_Betaling,""), "") ->  | F178: =IFERROR(IF(Lån_Ikke_Betalt*Værdier_Angivet,Hovedstol,""), "") ->  | G178: =IFERROR(IF(Lån_Ikke_Betalt*Værdier_Angivet,Renter,""), "") ->  | H178: =IFERROR(IF(Lån_Ikke_Betalt*Værdier_Angivet,Slut_saldo,""), "") -> 
B179: =IFERROR(IF(Lån_Ikke_Betalt*Værdier_Angivet,Betaling_Nummer,""), "") ->  | C179: =IFERROR(IF(Lån_Ikke_Betalt*Værdier_Angivet,Betalingsdato,""), "") ->  | D179: =IFERROR(IF(Lån_Ikke_Betalt*Værdier_Angivet,Startsaldo,""), "") ->  | E179: =IFERROR(IF(Lån_Ikke_Betalt*Værdier_Angivet,Månedlig_Betaling,""), "") ->  | F179: =IFERROR(IF(Lån_Ikke_Betalt*Værdier_Angivet,Hovedstol,""), "") ->  | G179: =IFERROR(IF(Lån_Ikke_Betalt*Værdier_Angivet,Renter,""), "") ->  | H179: =IFERROR(IF(Lån_Ikke_Betalt*Værdier_Angivet,Slut_saldo,""), "") -> 
B180: =IFERROR(IF(Lån_Ikke_Betalt*Værdier_Angivet,Betaling_Nummer,""), "") ->  | C180: =IFERROR(IF(Lån_Ikke_Betalt*Værdier_Angivet,Betalingsdato,""), "") ->  | D180: =IFERROR(IF(Lån_Ikke_Betalt*Værdier_Angivet,Startsaldo,""), "") ->  | E180: =IFERROR(IF(Lån_Ikke_Betalt*Værdier_Angivet,Månedlig_Betaling,""), "") ->  | F180: =IFERROR(IF(Lån_Ikke_Betalt*Værdier_Angivet,Hovedstol,""), "") ->  | G180: =IFERROR(IF(Lån_Ikke_Betalt*Værdier_Angivet,Renter,""), "") ->  | H180: =IFERROR(IF(Lån_Ikke_Betalt*Værdier_Angivet,Slut_saldo,""), "") -> 
B181: =IFERROR(IF(Lån_Ikke_Betalt*Værdier_Angivet,Betaling_Nummer,""), "") ->  | C181: =IFERROR(IF(Lån_Ikke_Betalt*Værdier_Angivet,Betalingsdato,""), "") ->  | D181: =IFERROR(IF(Lån_Ikke_Betalt*Værdier_Angivet,Startsaldo,""), "") ->  | E181: =IFERROR(IF(Lån_Ikke_Betalt*Værdier_Angivet,Månedlig_Betaling,""), "") ->  | F181: =IFERROR(IF(Lån_Ikke_Betalt*Værdier_Angivet,Hovedstol,""), "") ->  | G181: =IFERROR(IF(Lån_Ikke_Betalt*Værdier_Angivet,Renter,""), "") ->  | H181: =IFERROR(IF(Lån_Ikke_Betalt*Værdier_Angivet,Slut_saldo,""), "") -> 
B182: =IFERROR(IF(Lån_Ikke_Betalt*Værdier_Angivet,Betaling_Nummer,""), "") ->  | C182: =IFERROR(IF(Lån_Ikke_Betalt*Værdier_Angivet,Betalingsdato,""), "") ->  | D182: =IFERROR(IF(Lån_Ikke_Betalt*Værdier_Angivet,Startsaldo,""), "") ->  | E182: =IFERROR(IF(Lån_Ikke_Betalt*Værdier_Angivet,Månedlig_Betaling,""), "") ->  | F182: =IFERROR(IF(Lån_Ikke_Betalt*Værdier_Angivet,Hovedstol,""), "") ->  | G182: =IFERROR(IF(Lån_Ikke_Betalt*Værdier_Angivet,Renter,""), "") ->  | H182: =IFERROR(IF(Lån_Ikke_Betalt*Værdier_Angivet,Slut_saldo,""), "") -> 
B183: =IFERROR(IF(Lån_Ikke_Betalt*Værdier_Angivet,Betaling_Nummer,""), "") ->  | C183: =IFERROR(IF(Lån_Ikke_Betalt*Værdier_Angivet,Betalingsdato,""), "") ->  | D183: =IFERROR(IF(Lån_Ikke_Betalt*Værdier_Angivet,Startsaldo,""), "") ->  | E183: =IFERROR(IF(Lån_Ikke_Betalt*Værdier_Angivet,Månedlig_Betaling,""), "") ->  | F183: =IFERROR(IF(Lån_Ikke_Betalt*Værdier_Angivet,Hovedstol,""), "") ->  | G183: =IFERROR(IF(Lån_Ikke_Betalt*Værdier_Angivet,Renter,""), "") ->  | H183: =IFERROR(IF(Lån_Ikke_Betalt*Værdier_Angivet,Slut_saldo,""), "") -> 
B184: =IFERROR(IF(Lån_Ikke_Betalt*Værdier_Angivet,Betaling_Nummer,""), "") ->  | C184: =IFERROR(IF(Lån_Ikke_Betalt*Værdier_Angivet,Betalingsdato,""), "") ->  | D184: =IFERROR(IF(Lån_Ikke_Betalt*Værdier_Angivet,Startsaldo,""), "") ->  | E184: =IFERROR(IF(Lån_Ikke_Betalt*Værdier_Angivet,Månedlig_Betaling,""), "") ->  | F184: =IFERROR(IF(Lån_Ikke_Betalt*Værdier_Angivet,Hovedstol,""), "") ->  | G184: =IFERROR(IF(Lån_Ikke_Betalt*Værdier_Angivet,Renter,""), "") ->  | H184: =IFERROR(IF(Lån_Ikke_Betalt*Værdier_Angivet,Slut_saldo,""), "") -> 
B185: =IFERROR(IF(Lån_Ikke_Betalt*Værdier_Angivet,Betaling_Nummer,""), "") ->  | C185: =IFERROR(IF(Lån_Ikke_Betalt*Værdier_Angivet,Betalingsdato,""), "") ->  | D185: =IFERROR(IF(Lån_Ikke_Betalt*Værdier_Angivet,Startsaldo,""), "") ->  | E185: =IFERROR(IF(Lån_Ikke_Betalt*Værdier_Angivet,Månedlig_Betaling,""), "") ->  | F185: =IFERROR(IF(Lån_Ikke_Betalt*Værdier_Angivet,Hovedstol,""), "") ->  | G185: =IFERROR(IF(Lån_Ikke_Betalt*Værdier_Angivet,Renter,""), "") ->  | H185: =IFERROR(IF(Lån_Ikke_Betalt*Værdier_Angivet,Slut_saldo,""), "") -> 
B186: =IFERROR(IF(Lån_Ikke_Betalt*Værdier_Angivet,Betaling_Nummer,""), "") ->  | C186: =IFERROR(IF(Lån_Ikke_Betalt*Værdier_Angivet,Betalingsdato,""), "") ->  | D186: =IFERROR(IF(Lån_Ikke_Betalt*Værdier_Angivet,Startsaldo,""), "") ->  | E186: =IFERROR(IF(Lån_Ikke_Betalt*Værdier_Angivet,Månedlig_Betaling,""), "") ->  | F186: =IFERROR(IF(Lån_Ikke_Betalt*Værdier_Angivet,Hovedstol,""), "") ->  | G186: =IFERROR(IF(Lån_Ikke_Betalt*Værdier_Angivet,Renter,""), "") ->  | H186: =IFERROR(IF(Lån_Ikke_Betalt*Værdier_Angivet,Slut_saldo,""), "") -> 
B187: =IFERROR(IF(Lån_Ikke_Betalt*Værdier_Angivet,Betaling_Nummer,""), "") ->  | C187: =IFERROR(IF(Lån_Ikke_Betalt*Værdier_Angivet,Betalingsdato,""), "") ->  | D187: =IFERROR(IF(Lån_Ikke_Betalt*Værdier_Angivet,Startsaldo,""), "") ->  | E187: =IFERROR(IF(Lån_Ikke_Betalt*Værdier_Angivet,Månedlig_Betaling,""), "") ->  | F187: =IFERROR(IF(Lån_Ikke_Betalt*Værdier_Angivet,Hovedstol,""), "") ->  | G187: =IFERROR(IF(Lån_Ikke_Betalt*Værdier_Angivet,Renter,""), "") ->  | H187: =IFERROR(IF(Lån_Ikke_Betalt*Værdier_Angivet,Slut_saldo,""), "") -> 
B188: =IFERROR(IF(Lån_Ikke_Betalt*Værdier_Angivet,Betaling_Nummer,""), "") ->  | C188: =IFERROR(IF(Lån_Ikke_Betalt*Værdier_Angivet,Betalingsdato,""), "") ->  | D188: =IFERROR(IF(Lån_Ikke_Betalt*Værdier_Angivet,Startsaldo,""), "") ->  | E188: =IFERROR(IF(Lån_Ikke_Betalt*Værdier_Angivet,Månedlig_Betaling,""), "") ->  | F188: =IFERROR(IF(Lån_Ikke_Betalt*Værdier_Angivet,Hovedstol,""), "") ->  | G188: =IFERROR(IF(Lån_Ikke_Betalt*Værdier_Angivet,Renter,""), "") ->  | H188: =IFERROR(IF(Lån_Ikke_Betalt*Værdier_Angivet,Slut_saldo,""), "") -> 
B189: =IFERROR(IF(Lån_Ikke_Betalt*Værdier_Angivet,Betaling_Nummer,""), "") ->  | C189: =IFERROR(IF(Lån_Ikke_Betalt*Værdier_Angivet,Betalingsdato,""), "") ->  | D189: =IFERROR(IF(Lån_Ikke_Betalt*Værdier_Angivet,Startsaldo,""), "") ->  | E189: =IFERROR(IF(Lån_Ikke_Betalt*Værdier_Angivet,Månedlig_Betaling,""), "") ->  | F189: =IFERROR(IF(Lån_Ikke_Betalt*Værdier_Angivet,Hovedstol,""), "") ->  | G189: =IFERROR(IF(Lån_Ikke_Betalt*Værdier_Angivet,Renter,""), "") ->  | H189: =IFERROR(IF(Lån_Ikke_Betalt*Værdier_Angivet,Slut_saldo,""), "") -> 
B190: =IFERROR(IF(Lån_Ikke_Betalt*Værdier_Angivet,Betaling_Nummer,""), "") ->  | C190: =IFERROR(IF(Lån_Ikke_Betalt*Værdier_Angivet,Betalingsdato,""), "") ->  | D190: =IFERROR(IF(Lån_Ikke_Betalt*Værdier_Angivet,Startsaldo,""), "") ->  | E190: =IFERROR(IF(Lån_Ikke_Betalt*Værdier_Angivet,Månedlig_Betaling,""), "") ->  | F190: =IFERROR(IF(Lån_Ikke_Betalt*Værdier_Angivet,Hovedstol,""), "") ->  | G190: =IFERROR(IF(Lån_Ikke_Betalt*Værdier_Angivet,Renter,""), "") ->  | H190: =IFERROR(IF(Lån_Ikke_Betalt*Værdier_Angivet,Slut_saldo,""), "") -> 
B191: =IFERROR(IF(Lån_Ikke_Betalt*Værdier_Angivet,Betaling_Nummer,""), "") ->  | C191: =IFERROR(IF(Lån_Ikke_Betalt*Værdier_Angivet,Betalingsdato,""), "") ->  | D191: =IFERROR(IF(Lån_Ikke_Betalt*Værdier_Angivet,Startsaldo,""), "") ->  | E191: =IFERROR(IF(Lån_Ikke_Betalt*Værdier_Angivet,Månedlig_Betaling,""), "") ->  | F191: =IFERROR(IF(Lån_Ikke_Betalt*Værdier_Angivet,Hovedstol,""), "") ->  | G191: =IFERROR(IF(Lån_Ikke_Betalt*Værdier_Angivet,Renter,""), "") ->  | H191: =IFERROR(IF(Lån_Ikke_Betalt*Værdier_Angivet,Slut_saldo,""), "") -> 
B192: =IFERROR(IF(Lån_Ikke_Betalt*Værdier_Angivet,Betaling_Nummer,""), "") ->  | C192: =IFERROR(IF(Lån_Ikke_Betalt*Værdier_Angivet,Betalingsdato,""), "") ->  | D192: =IFERROR(IF(Lån_Ikke_Betalt*Værdier_Angivet,Startsaldo,""), "") ->  | E192: =IFERROR(IF(Lån_Ikke_Betalt*Værdier_Angivet,Månedlig_Betaling,""), "") ->  | F192: =IFERROR(IF(Lån_Ikke_Betalt*Værdier_Angivet,Hovedstol,""), "") ->  | G192: =IFERROR(IF(Lån_Ikke_Betalt*Værdier_Angivet,Renter,""), "") ->  | H192: =IFERROR(IF(Lån_Ikke_Betalt*Værdier_Angivet,Slut_saldo,""), "") -> 
B193: =IFERROR(IF(Lån_Ikke_Betalt*Værdier_Angivet,Betaling_Nummer,""), "") ->  | C193: =IFERROR(IF(Lån_Ikke_Betalt*Værdier_Angivet,Betalingsdato,""), "") ->  | D193: =IFERROR(IF(Lån_Ikke_Betalt*Værdier_Angivet,Startsaldo,""), "") ->  | E193: =IFERROR(IF(Lån_Ikke_Betalt*Værdier_Angivet,Månedlig_Betaling,""), "") ->  | F193: =IFERROR(IF(Lån_Ikke_Betalt*Værdier_Angivet,Hovedstol,""), "") ->  | G193: =IFERROR(IF(Lån_Ikke_Betalt*Værdier_Angivet,Renter,""), "") ->  | H193: =IFERROR(IF(Lån_Ikke_Betalt*Værdier_Angivet,Slut_saldo,""), "") -> 
B194: =IFERROR(IF(Lån_Ikke_Betalt*Værdier_Angivet,Betaling_Nummer,""), "") ->  | C194: =IFERROR(IF(Lån_Ikke_Betalt*Værdier_Angivet,Betalingsdato,""), "") ->  | D194: =IFERROR(IF(Lån_Ikke_Betalt*Værdier_Angivet,Startsaldo,""), "") ->  | E194: =IFERROR(IF(Lån_Ikke_Betalt*Værdier_Angivet,Månedlig_Betaling,""), "") ->  | F194: =IFERROR(IF(Lån_Ikke_Betalt*Værdier_Angivet,Hovedstol,""), "") ->  | G194: =IFERROR(IF(Lån_Ikke_Betalt*Værdier_Angivet,Renter,""), "") ->  | H194: =IFERROR(IF(Lån_Ikke_Betalt*Værdier_Angivet,Slut_saldo,""), "") -> 
B195: =IFERROR(IF(Lån_Ikke_Betalt*Værdier_Angivet,Betaling_Nummer,""), "") ->  | C195: =IFERROR(IF(Lån_Ikke_Betalt*Værdier_Angivet,Betalingsdato,""), "") ->  | D195: =IFERROR(IF(Lån_Ikke_Betalt*Værdier_Angivet,Startsaldo,""), "") ->  | E195: =IFERROR(IF(Lån_Ikke_Betalt*Værdier_Angivet,Månedlig_Betaling,""), "") ->  | F195: =IFERROR(IF(Lån_Ikke_Betalt*Værdier_Angivet,Hovedstol,""), "") ->  | G195: =IFERROR(IF(Lån_Ikke_Betalt*Værdier_Angivet,Renter,""), "") ->  | H195: =IFERROR(IF(Lån_Ikke_Betalt*Værdier_Angivet,Slut_saldo,""), "") -> 
B196: =IFERROR(IF(Lån_Ikke_Betalt*Værdier_Angivet,Betaling_Nummer,""), "") ->  | C196: =IFERROR(IF(Lån_Ikke_Betalt*Værdier_Angivet,Betalingsdato,""), "") ->  | D196: =IFERROR(IF(Lån_Ikke_Betalt*Værdier_Angivet,Startsaldo,""), "") ->  | E196: =IFERROR(IF(Lån_Ikke_Betalt*Værdier_Angivet,Månedlig_Betaling,""), "") ->  | F196: =IFERROR(IF(Lån_Ikke_Betalt*Værdier_Angivet,Hovedstol,""), "") ->  | G196: =IFERROR(IF(Lån_Ikke_Betalt*Værdier_Angivet,Renter,""), "") ->  | H196: =IFERROR(IF(Lån_Ikke_Betalt*Værdier_Angivet,Slut_saldo,""), "") -> 
B197: =IFERROR(IF(Lån_Ikke_Betalt*Værdier_Angivet,Betaling_Nummer,""), "") ->  | C197: =IFERROR(IF(Lån_Ikke_Betalt*Værdier_Angivet,Betalingsdato,""), "") ->  | D197: =IFERROR(IF(Lån_Ikke_Betalt*Værdier_Angivet,Startsaldo,""), "") ->  | E197: =IFERROR(IF(Lån_Ikke_Betalt*Værdier_Angivet,Månedlig_Betaling,""), "") ->  | F197: =IFERROR(IF(Lån_Ikke_Betalt*Værdier_Angivet,Hovedstol,""), "") ->  | G197: =IFERROR(IF(Lån_Ikke_Betalt*Værdier_Angivet,Renter,""), "") ->  | H197: =IFERROR(IF(Lån_Ikke_Betalt*Værdier_Angivet,Slut_saldo,""), "") -> 
B198: =IFERROR(IF(Lån_Ikke_Betalt*Værdier_Angivet,Betaling_Nummer,""), "") ->  | C198: =IFERROR(IF(Lån_Ikke_Betalt*Værdier_Angivet,Betalingsdato,""), "") ->  | D198: =IFERROR(IF(Lån_Ikke_Betalt*Værdier_Angivet,Startsaldo,""), "") ->  | E198: =IFERROR(IF(Lån_Ikke_Betalt*Værdier_Angivet,Månedlig_Betaling,""), "") ->  | F198: =IFERROR(IF(Lån_Ikke_Betalt*Værdier_Angivet,Hovedstol,""), "") ->  | G198: =IFERROR(IF(Lån_Ikke_Betalt*Værdier_Angivet,Renter,""), "") ->  | H198: =IFERROR(IF(Lån_Ikke_Betalt*Værdier_Angivet,Slut_saldo,""), "") -> 
B199: =IFERROR(IF(Lån_Ikke_Betalt*Værdier_Angivet,Betaling_Nummer,""), "") ->  | C199: =IFERROR(IF(Lån_Ikke_Betalt*Værdier_Angivet,Betalingsdato,""), "") ->  | D199: =IFERROR(IF(Lån_Ikke_Betalt*Værdier_Angivet,Startsaldo,""), "") ->  | E199: =IFERROR(IF(Lån_Ikke_Betalt*Værdier_Angivet,Månedlig_Betaling,""), "") ->  | F199: =IFERROR(IF(Lån_Ikke_Betalt*Værdier_Angivet,Hovedstol,""), "") ->  | G199: =IFERROR(IF(Lån_Ikke_Betalt*Værdier_Angivet,Renter,""), "") ->  | H199: =IFERROR(IF(Lån_Ikke_Betalt*Værdier_Angivet,Slut_saldo,""), "") -> 
B200: =IFERROR(IF(Lån_Ikke_Betalt*Værdier_Angivet,Betaling_Nummer,""), "") ->  | C200: =IFERROR(IF(Lån_Ikke_Betalt*Værdier_Angivet,Betalingsdato,""), "") ->  | D200: =IFERROR(IF(Lån_Ikke_Betalt*Værdier_Angivet,Startsaldo,""), "") ->  | E200: =IFERROR(IF(Lån_Ikke_Betalt*Værdier_Angivet,Månedlig_Betaling,""), "") ->  | F200: =IFERROR(IF(Lån_Ikke_Betalt*Værdier_Angivet,Hovedstol,""), "") ->  | G200: =IFERROR(IF(Lån_Ikke_Betalt*Værdier_Angivet,Renter,""), "") ->  | H200: =IFERROR(IF(Lån_Ikke_Betalt*Værdier_Angivet,Slut_saldo,""), "") -> 
B201: =IFERROR(IF(Lån_Ikke_Betalt*Værdier_Angivet,Betaling_Nummer,""), "") ->  | C201: =IFERROR(IF(Lån_Ikke_Betalt*Værdier_Angivet,Betalingsdato,""), "") ->  | D201: =IFERROR(IF(Lån_Ikke_Betalt*Værdier_Angivet,Startsaldo,""), "") ->  | E201: =IFERROR(IF(Lån_Ikke_Betalt*Værdier_Angivet,Månedlig_Betaling,""), "") ->  | F201: =IFERROR(IF(Lån_Ikke_Betalt*Værdier_Angivet,Hovedstol,""), "") ->  | G201: =IFERROR(IF(Lån_Ikke_Betalt*Værdier_Angivet,Renter,""), "") ->  | H201: =IFERROR(IF(Lån_Ikke_Betalt*Værdier_Angivet,Slut_saldo,""), "") -> 
... 171 more rows
